Cogmind - Beta 9.4 @@@ ROGUE MODE // 2020.01.11 @ 21:32:31 // Winter2019/RPGLIKE Player: Terminus Result: Establishing 0b11! Performance ------------- Evolutions (9) 4500 Regions Visited (38) 7600 Robots Destroyed (1325) 6625 Value Destroyed (78702) 78702 Prototype IDs (137) 2740 Alien Tech Used (9) 1800 Bonus (85557) 85557 TOTAL SCORE: 187524 Bonus ------- Triggered High Security 1000 High Alert Combat Kills 37384 Follower Combat Kills 536 Network Hubs Disabled 800 Aligned with FarCom 300 Met Data Miner 300 Met Imprinter 300 Built Enhanced Grunts 300 Found Hidden Lab 3000 Scanned by Researcher 500 Pursued by Intercept 1000 Met Sigix 2000 Recovered Sigix Corpse 1000 Destroyed MAIN.C Guards 500 Met MAIN.C 5000 Destroyed MAIN.C Shell 5000 Destroyed MAIN.C 10000 Met Architect 300 Started Test 138-B 500 Destroyed A8 300 Destroyed A4 700 Destroyed A3 800 Destroyed A2 1000 Destroyed Architect 15000 Win 3000 Friendly Fire -4963 Cogmind --------- Core Integrity 1158/1300 Matter 295/300 Energy 1496/1520 System Corruption 1% Temperature Cool (4) Movement Flying (21) Location 0b11 Command Parts ------- > --- POWER (3) -------- Zero-point Reactor Zero-point Reactor Zero-point Reactor > --- PROPULSION (4) --- Cooled Q-thruster Cooled Q-thruster Cooled Q-thruster Cooled Q-thruster > --- UTILITY (15) ----- Desublimator Experimental Energy Well Experimental Signal Interpreter Experimental Targeting Computer Experimental Targeting Computer Experimental Targeting Computer Experimental Targeting Computer Experimental Target Analyzer Experimental Armor Integrity Analyzer Experimental Weapon Cycler Advanced Reaction Control System Experimental Phase Shifter Experimental Force Field Architect God Chip A Architect God Chip D > --- WEAPON (4) ------- Hypervelocity Railgun Hypervelocity Railgun 8R-AWN's Boregun 8R-AWN's Boregun > --- INVENTORY (7) ---- Experimental Energy Well (1000) Experimental Energy Well (1000) Experimental Matter Compressor (500) Experimental Matter Compressor (500) Plasma Lance Sigix Corpse Peak State ------------ > --- POWER ------------ Zero-point Reactor Zero-point Reactor Zero-point Reactor > --- PROPULSION ------- Cooled Q-thruster Cooled Q-thruster Cooled Q-thruster Cooled Q-thruster > --- UTILITY ---------- Desublimator Experimental Energy Well Experimental Signal Interpreter Experimental Targeting Computer Experimental Targeting Computer Experimental Targeting Computer Experimental Targeting Computer Experimental Target Analyzer Experimental Armor Integrity Analyzer Experimental Weapon Cycler Advanced Reaction Control System Experimental Phase Shifter Experimental Force Field Architect God Chip A Architect God Chip D > --- WEAPON ----------- Hypervelocity Railgun Hypervelocity Railgun 8R-AWN's Boregun 8R-AWN's Boregun > --- INVENTORY -------- Experimental Energy Well Experimental Energy Well Experimental Matter Compressor Experimental Matter Compressor High-powered Transdimensional Reconstructor Plasma Lance Sigix Corpse [Rating: 249] Favorites ----------- Power Zero-point Reactor Engine Cooled Deuterium Engine Reactor Zero-point Reactor Propulsion Cooled Q-thruster Leg Aluminum Leg Flight Unit Cooled Q-thruster Utility Experimental Targeting Computer Device Advanced Weapon Cycler Storage Experimental Energy Well Processor Experimental Targeting Computer Hackware Advanced Hacking Suite Protection Medium Regenerative Plating Weapon 8R-AWN's Boregun Energy Gun Heavy EM Pulse Gun Energy Cannon Cooled Particle Cannon Ballistic Gun 8R-AWN's Boregun Ballistic Cannon Compact Linear Accelerator Launcher Heavy Shock Bomb Launcher Special Weapon Plasma Cutter Slashing Weapon Great Axe Piercing Weapon Lance Build | -11 -10 -10 -10 -9 -8 -7 -7 -7 -7 -7 -7 -7 -6 -6 -6 -6 -6 -6 -6 -5 -5 -5 -5 -5 -5 -5 -5 -4 -4 -4 -3 -3 -2 -2 -2 -1 -1 -1 ------- Run | Scr Mat Min Exi Min Mat Fac Was Fac Low Low Zio Dee Pro Fac Was Fac Low Low Dat Pro Fac Was Fac Ext Cet Arc Hub Fac Arm Lab Res Tes Res Qua Sec Acc Com Ac0 Slots Evolved 21 | 4 1 1 . 1 2 2 . 1 1 . 1 . 1 1 . . . . . 1 . . . . 1 . . . . 1 . . 1 . . 1 . . Power 1 | . . . . . . . . . . . . . 1 . . . . . . . . . . . . . . . . . . . . . . . . . Propulsion 3 | 1 . 1 . 1 . . . . . . . . . . . . . . . . . . . . . . . . . . . . . . . . . . Utility 14 | 2 1 . . . 2 1 . 1 . . 1 . . 1 . . . . . 1 . . . . 1 . . . . 1 . . 1 . . 1 . . Weapon 3 | 1 . . . . . 1 . . 1 . . . . . . . . . . . . . . . . . . . . . . . . . . . . . Parts Attached 304 | 5 9 1 16 2 8 6 . 21 . . 4 3 . 9 . 11 . 1 . 2 2 . 11 . 7 . 3 8 10 12 4 31 3 19 24 9 33 30 Power 16 | 1 . . . 1 . 1 . 3 . . . . . . . 3 . . . . . . . . . . . . . . . 2 . . 1 3 . 1 Engine 7 | 1 . . . 1 . 1 . 3 . . . . . . . 1 . . . . . . . . . . . . . . . . . . . . . . Core . | . . . . . . . . . . . . . . . . . . . . . . . . . . . . . . . . . . . . . . . Reactor 9 | . . . . . . . . . . . . . . . . 2 . . . . . . . . . . . . . . . 2 . . 1 3 . 1 Propulsion 28 | 2 . . 2 . 5 . . 2 . . . . . 3 . 5 . . . . . . . . . . . . . . 1 7 . . . . 1 . Treads . | . . . . . . . . . . . . . . . . . . . . . . . . . . . . . . . . . . . . . . . Leg 4 | 2 . . 2 . . . . . . . . . . . . . . . . . . . . . . . . . . . . . . . . . . . Wheel . | . . . . . . . . . . . . . . . . . . . . . . . . . . . . . . . . . . . . . . . Hover . | . . . . . . . . . . . . . . . . . . . . . . . . . . . . . . . . . . . . . . . Flight 24 | . . . . . 5 . . 2 . . . . . 3 . 5 . . . . . . . . . . . . . . 1 7 . . . . 1 . Utility 112 | . 5 1 7 . 3 4 . 4 . . 3 2 . 6 . 3 . 1 . 1 2 . 6 . 2 . . 1 2 5 2 6 1 9 6 5 10 15 Device 51 | . 2 . 4 . . . . . . . . 1 . . . 3 . 1 . . . . 2 . . . . . 1 . . 3 1 6 5 4 8 10 Storage 4 | . . . . . . . . . . . . 1 . . . . . . . . . . . . . . . . . . . . . 1 . 1 . 1 Processor 19 | . . 1 1 . 3 1 . 1 . . . . . . . . . . . 1 2 . 1 . . . . . 1 . 1 1 . 1 1 . 2 1 Hackware 26 | . . . 1 . . 3 . 3 . . 3 . . 6 . . . . . . . . 3 . 1 . . 1 . 1 . 1 . . . . . 3 Protection 12 | . 3 . 1 . . . . . . . . . . . . . . . . . . . . . 1 . . . . 4 1 1 . 1 . . . . Artifact . | . . . . . . . . . . . . . . . . . . . . . . . . . . . . . . . . . . . . . . . Weapon 148 | 2 4 . 7 1 . 1 . 12 . . 1 1 . . . . . . . 1 . . 5 . 5 . 3 7 8 7 1 16 2 10 17 1 22 14 Energy Gun 11 | . 4 . 3 . . . . . . . . 1 . . . . . . . . . . . . . . . . . 1 . 1 . . . . 1 . Energy Cannon 1 | . . . . . . . . 1 . . . . . . . . . . . . . . . . . . . . . . . . . . . . . . Ballistic Gun 77 | 2 . . 3 1 . . . 7 . . . . . . . . . . . . . . 3 . 2 . 1 4 4 3 1 7 1 5 10 . 14 9 Ballistic Cannon 1 | . . . . . . . . . . . . . . . . . . . . . . . . . . . . . . . . 1 . . . . . . Launcher 5 | . . . 1 . . . . 1 . . . . . . . . . . . 1 . . 1 . . . . . . . . . . . . . 1 . Special Weapon 5 | . . . . . . . . . . . 1 . . . . . . . . . . . . . 2 . . 1 . 1 . . . . . . . . Impact Weapon . | . . . . . . . . . . . . . . . . . . . . . . . . . . . . . . . . . . . . . . . Slashing Weapon 2 | . . . . . . 1 . 1 . . . . . . . . . . . . . . . . . . . . . . . . . . . . . . Piercing Weapon 46 | . . . . . . . . 2 . . . . . . . . . . . . . . 1 . 1 . 2 2 4 2 . 7 1 5 7 1 6 5 Special Melee Weapon . | . . . . . . . . . . . . . . . . . . . . . . . . . . . . . . . . . . . . . . . Unidentified Prototypes 49 | . . . 6 . 1 1 . 5 . . . 2 . . . . . . . . . . . . . . . . . 5 . 7 . 3 3 1 4 11 Parts Lost 4 | . . . . . . . . . . . . . . 1 . 1 . . . . . . 1 . . . . . . . . . . . 1 . . . Power . | . . . . . . . . . . . . . . . . . . . . . . . . . . . . . . . . . . . . . . . Propulsion 1 | . . . . . . . . . . . . . . . . 1 . . . . . . . . . . . . . . . . . . . . . . Utility 3 | . . . . . . . . . . . . . . 1 . . . . . . . . 1 . . . . . . . . . . . 1 . . . Weapon . | . . . . . . . . . . . . . . . . . . . . . . . . . . . . . . . . . . . . . . . Highest Loss Streak 1 | . . . . . . . . . . . . . . 1 . 1 . . . . . . 1 . . . . . . . . . . . 1 . . . Average Slot Usage (%) 96 | . 84 72 82 86 96 96 100 99 94 94 95 98 89 88 90 91 95 95 95 95 95 95 98 100 100 100 100 100 100 100 99 99 100 100 98 99 99 99 Engine 2 | . 11 10 10 8 7 6 6 6 5 5 5 5 5 5 5 4 . . . . . . . . . . . . . . . . . . . . . . Reactor 6 | . . . . . . . . . . . . . . . . 1 10 10 10 9 9 9 9 9 9 9 9 9 9 8 8 8 8 8 8 11 11 11 Leg 2 | . 24 20 22 23 3 . . . . . . . . . . . . . . . . . . . . . . . . . . . . . . . . . Flight 16 | . . . . . 26 27 26 25 23 23 22 22 21 20 20 19 20 20 20 19 19 19 19 19 18 18 18 18 18 17 17 16 16 16 16 15 15 15 Device 13 | . 11 10 12 18 15 13 13 12 11 11 11 11 10 10 10 10 10 10 10 9 9 9 9 9 9 9 9 9 9 8 8 7 12 12 13 14 19 19 Processor 20 | . . 2 8 9 15 14 13 12 11 11 11 11 10 10 10 10 10 10 10 11 14 19 18 19 18 18 18 18 20 21 21 21 20 21 26 27 32 33 Hackware 13 | . . . 1 9 7 14 20 21 23 23 26 27 26 26 30 30 30 30 30 29 27 23 23 23 22 22 22 22 22 21 21 21 20 18 16 11 1 . Protection 1 | . 11 10 8 . . . . . . . . . . . . . . . . . . . . . . 4 4 4 1 3 3 4 4 2 . . . . Energy Gun 1 | . 21 20 11 . . . . . . . . 3 . . . . . . . . . . . . . . . . . . . . . . . . . . Ballistic Gun 13 | . 2 . 6 18 15 13 13 12 11 11 11 11 10 10 10 10 10 10 10 9 9 9 12 19 18 18 17 17 17 14 16 14 15 14 14 15 14 14 Piercing Weapon 1 | . . . . . . . . 3 5 5 5 5 5 5 5 5 5 5 5 4 4 4 2 . . . . . . 2 . 2 . 1 1 . . . Naked Turns . | . . . . . . . . . . . . . . . . . . . . . . . . . . . . . . . . . . . . . . . Heaviest Build 101 | 9 16 16 42 23 23 28 28 28 27 27 28 31 31 27 27 39 35 30 30 39 30 30 48 41 49 49 49 49 49 50 50 66 68 68 78 95 101 101 Greatest Support 124 | 20 25 25 75 75 65 29 29 31 31 31 31 31 31 37 37 49 49 49 49 49 49 49 49 49 49 49 49 49 49 54 57 66 71 76 124 96 124 103 Greatest Overweight (x) 2 | . . . . . . . . . . . . . . . . . . . . . . . . . . . . . . . . . . . 1 2 1 . Average Overweight (x) . | . . . . . . . . . . . . . . . . . . . . . . . . . . . . . . . . . . . . . . . Largest Inventory Capacity 7 | 1 1 2 2 3 4 4 4 5 5 5 5 5 5 5 5 5 5 5 5 5 5 5 6 6 6 6 6 6 6 6 6 6 6 6 7 7 7 7 Average Capacity 5 | . 1 1 2 2 3 4 4 4 5 5 5 5 5 5 5 5 5 5 5 5 5 5 5 6 6 6 6 6 6 6 6 6 6 6 6 7 7 7 Most Carried 7 | . 1 1 2 3 4 4 4 5 5 5 5 5 5 5 5 5 5 5 5 5 5 5 6 6 6 6 6 6 6 6 6 6 6 6 7 7 7 7 Average Carried 5 | . . 1 1 2 3 3 3 4 5 5 4 4 5 5 5 5 5 4 5 4 4 5 5 6 6 6 6 6 5 5 5 5 5 5 6 6 6 6 Final Capacity 7 | 1 1 2 2 3 4 4 4 5 5 5 5 5 5 5 5 5 5 5 5 5 5 5 6 6 6 6 6 6 6 6 6 6 6 6 7 7 7 7 Final Carried 7 | . 1 1 2 3 4 4 4 5 5 5 5 5 5 5 5 5 5 5 5 4 5 5 6 6 6 6 6 6 6 6 6 6 5 6 6 7 6 6 Class Distribution -------------------- 48% | Wizard-Sprinter 12% | Machinist-Scout 10% | Machinist-Gunner 7% | Mutant 5% | Hacker-Sprinter 4% | Machinist-Mutant 4% | Machinist-Sprinter Dominant Class ---------------- Mutant | -10/Materials Mutant | -10/Mines Mutant | -10/Exiles Scavenger-Mutant | -9/Mines Scavenger-Sprinter | -8/Materials Hacker-Sprinter | -7/Factory Hacker-Sprinter | -7/Waste Hacker-Sprinter | -7/Factory Wizard-Sprinter | -7/Lower Caves Wizard-Sprinter | -7/Lower Caves Wizard-Sprinter | -7/Zion Wizard-Sprinter | -7/Deep Caves Wizard-Sprinter | -6/Proximity Caves Wizard-Sprinter | -6/Factory Wizard-Sprinter | -6/Waste Wizard-Sprinter | -6/Factory Wizard-Sprinter | -6/Lower Caves Wizard-Sprinter | -6/Lower Caves Wizard-Sprinter | -6/Data Miner Wizard-Sprinter | -5/Proximity Caves Wizard-Sprinter | -5/Factory Wizard-Sprinter | -5/Waste Wizard-Sprinter | -5/Factory Wizard-Sprinter | -5/Extension Wizard-Sprinter | -5/Cetus Wizard-Sprinter | -5/Archives Wizard-Sprinter | -5/Hub_04(d) Wizard-Sprinter | -4/Factory Machinist-Sprinter | -4/Armory Machinist-Sprinter | -4/Lab Wizard-Sprinter | -3/Research Wizard-Sprinter | -3/Testing Wizard-Sprinter | -2/Research Wizard-Sprinter | -2/Quarantine Wizard-Sprinter | -2/Section 7 Wizard-Sprinter | -1/Access Machinist-Gunner | -1/Command Machinist-Scout | -1/Access_0 Resources | -11 -10 -10 -10 -9 -8 -7 -7 -7 -7 -7 -7 -7 -6 -6 -6 -6 -6 -6 -6 -5 -5 -5 -5 -5 -5 -5 -5 -4 -4 -4 -3 -3 -2 -2 -2 -1 -1 -1 ----------- Run | Scr Mat Min Exi Min Mat Fac Was Fac Low Low Zio Dee Pro Fac Was Fac Low Low Dat Pro Fac Was Fac Ext Cet Arc Hub Fac Arm Lab Res Tes Res Qua Sec Acc Com Ac0 Matter Collected 37870 | 240 86 20 407 212 992 1091 109 1278 312 120 364 522 371 751 252 1065 144 10 108 41 40 280 665 836 331 130 827 1114 1187 . 1516 976 1206 1719 5455 3487 7265 2341 Remotely . | . . . . . . . . . . . . . . . . . . . . . . . . . . . . . . . . . . . . . . . Salvage Created 77461 | . 529 95 526 247 1529 2008 . 2108 518 282 868 1667 460 1344 1187 1851 183 . 429 95 277 1756 1342 1020 684 285 1615 1652 1791 . 1394 1530 3317 2420 7820 6417 23262 4953 Parts 3829 | . 50 6 67 18 105 109 9 109 25 15 59 46 32 65 41 95 7 . 35 5 25 42 79 75 39 16 101 113 94 . 58 95 132 146 333 283 987 313 Haulers Intercepted 26 | . 2 . . . 5 1 . 4 . . . . . 1 . . . . . . . . . . . . 1 . . . 1 1 3 . 4 3 . . Recyclers Shooed 9 | . . . . 1 3 . . . . . . . . 1 . . . . . . . . 2 . . . . . . . . . . . . 1 1 . Parts Field Recycled . | . . . . . . . . . . . . . . . . . . . . . . . . . . . . . . . . . . . . . . . Retrieved Matter . | . . . . . . . . . . . . . . . . . . . . . . . . . . . . . . . . . . . . . . . Parts Self-Destructed 88 | . . . . . . . . . 31 16 . . 31 . . . 7 . . 3 . . . . . . . . . . . . . . . . . . Prevented . | . . . . . . . . . . . . . . . . . . . . . . . . . . . . . . . . . . . . . . . Kills | -11 -10 -10 -10 -9 -8 -7 -7 -7 -7 -7 -7 -7 -6 -6 -6 -6 -6 -6 -6 -5 -5 -5 -5 -5 -5 -5 -5 -4 -4 -4 -3 -3 -2 -2 -2 -1 -1 -1 ------- Run | Scr Mat Min Exi Min Mat Fac Was Fac Low Low Zio Dee Pro Fac Was Fac Low Low Dat Pro Fac Was Fac Ext Cet Arc Hub Fac Arm Lab Res Tes Res Qua Sec Acc Com Ac0 Combat Hostiles Destroyed 1023 | . 15 . 4 6 19 26 . 30 9 7 6 18 7 20 6 18 3 . 4 5 5 6 22 16 8 3 19 17 20 . 10 13 28 27 74 64 442 46 Melee 23 | . . . . . . . . 2 . . 2 1 1 2 . 2 . . . . 2 . . . . . . . 1 . . . . 2 2 . 5 1 Guns 810 | . 15 . . 6 19 26 . 23 9 7 4 17 6 18 6 16 3 . 4 . 3 6 14 16 8 3 19 17 19 . 10 13 28 25 71 63 271 45 AOE 184 | . . . 3 . . . . 5 . . . . . . . . . . . 5 . . 8 . . . . . . . . . . . . . 163 . Classes Destroyed 33 | . 7 1 3 2 2 1 . 4 . . 1 2 1 1 1 . . . . . . . . . . . . . 1 . . 1 . 2 2 . 1 . Worker 55 | . 1 1 . . 2 3 . 4 . . . . . 2 . 6 . . . . . . 4 . . . 3 2 . . 2 . 3 . 3 5 14 . Builder 27 | . 1 . . 3 3 3 . 3 . . . . . . . 1 . . . . . . 2 2 . . 1 2 . . 1 1 . . 2 2 . . Tunneler 7 | . . . . 1 2 . . . . . . . . . . 1 . . . . . . . 1 . . . . . . . . 1 . . 1 . . Hauler 26 | . 2 . . . 5 1 . 4 . . . . . 1 . . . . . . . . . . . . 1 . . . 1 1 3 . 4 3 . . Recycler 26 | . . 1 . 1 2 . . 1 . . . . . . . 3 . . . . . . 1 1 . . . 1 . . 1 2 1 . 2 3 6 . Carrier 28 | . . . . . . . . 1 . . . . . . . . . . . . . . . . 1 . . . . . . . . 1 . 1 24 . Mechanic 4 | . . . . . . . . . . . . . . . . . . . . . . . . . . . . . . . . . . . 1 . 3 . Operator 22 | . 3 . . . . 3 . 1 1 . . . . . . 2 . . 1 . . . . 1 . . 2 . 1 . . . 2 3 . . 2 . Turret 1 | . . . 1 . . . . . . . . . . . . . . . . . . . . . . . . . . . . . . . . . . . Watcher 67 | . 2 . . . 3 2 . . . . . . . 4 . 7 . . . . 2 . 2 2 1 . 3 4 3 . 3 3 3 3 3 7 10 . Swarmer 119 | . 1 . . . . 3 . 5 1 4 . . . . . 4 . . . 5 . . 9 . . . 3 . 1 . . 4 5 . 5 . 69 . Saboteur 26 | . . . . . . . . . . . . . . 1 . . . . . . . . . . . . . . 1 . . . . . . 1 23 . Grunt 345 | . 14 . . . 10 17 . 12 3 3 . . 3 13 . 7 2 . . . 4 . 9 11 5 . 6 10 7 . 4 5 17 4 22 32 125 . Brawler 42 | . . . . . . . . 2 2 . . . 1 1 . . 1 . . . . . 3 . . . . 1 . . . . 2 . . . 29 . Duelist 32 | . . . . . . . . 3 1 . . . . . . 1 . . . . . . . . . . . . 3 . . . . . . 1 23 . Protector 16 | . . . . . . . . 1 . . . . . . . . . . . . . . . . . . . . 1 . . . . 1 . . 13 . Researcher 9 | . . . . . . . . . . . . . . . . . . . . . . . . . . . . . . . . 2 . . 7 . . . Sentry 83 | . . . . . 7 5 . 6 2 . . . 2 4 . 4 . . . . 1 . 1 3 . 3 8 4 4 . 5 1 2 3 8 3 7 . Demolisher 12 | . . . . 1 . . . . . . . . . . . . . . . . . . . . . . . . . . . . . . . . 11 . Specialist 17 | . . . . . . . . . . . . . . . . . . . . . . . . . . . . . 2 . . . . 3 . . 12 . Hunter 78 | . . . . . 2 . . . . . . . . . . 1 . . . . . . . . . . . 2 . . . . . 6 7 4 56 . Programmer 74 | . . . . . . 1 . 1 . . . . . 1 . 1 . . . . . . . . . . . . . . 1 1 . 5 5 5 53 . Behemoth 8 | . . . . . . . . . . . . . 1 . . . . . . . . . . 1 . . . . 1 . . . 2 . 1 . 2 . Compactor 12 | . . . . . . . . . . . . . . . 6 . . . . . . 6 . . . . . . . . . . . . . . . . Cetus Guard 3 | . . . . . . . . . . . . . . . . . . . . . . . . . 3 . . . . . . . . . . . . . S7 Guard 1 | . . . . . . . . . . . . . . . . . . . . . . . . . . . . . . . . . . . 1 . . . M Guard 2 | . . . . . . . . . . . . . . . . . . . . . . . . . . . . . . . . . . . . . 2 . Enhanced Grunt 34 | . . . . . . . . . . . . . . . . . . . 4 . . . . . . . 1 . . . . . . . . . . 29 Enhanced Sentry 4 | . . . . . . . . . . . . . . . . . . . . . . . . . . . . . . . . . . . . . . 4 Enhanced Hunter 8 | . . . . . . . . . . . . . . . . . . . . . . . . . . . . . . . . . . . . . . 8 Lightning 5 | . . . . . . . . . . . . . . . . . . . . . . . . . . . 2 . . . . . . 3 . . . . Tracker 23 | . . . . . . . . . . . . . . . . . . . . . . . . . . . . . . . . . . . 14 9 . . Combat Programmer 20 | . . . . . . . . . . . . . . . . . . . . . . . . . . . . . . . . . . . 9 9 2 . Striker 5 | . . . . . . . . . . . . . . . . . . . . . . . . . . . . . . . . . . . . . 5 . Executioner 8 | . . . . . . . . . . . . . . . . . . . . . . . . . . . . . . . . . . . 2 . 6 . Alpha 7 3 | . . . . . . . . . . . . . . . . . . . . . . . . . . . . . . . . . . 1 . . 2 . Fortress 1 | . . . . . . . . . . . . . . . . . . . . . . . . . . . . . . . . . . 1 . . . . Protovariant X 1 | . . . . . . . . . . . . . . . . . . . . . . . . . . . . . . . . 1 . . . . . . Protovariant P 1 | . . . . . . . . . . . . . . . . . . . . . . . . . . . . . . . . 1 . . . . . . Zionite 21 | . . . 8 . . . . . . . 13 . . . . . . . . . . . . . . . . . . . . . . . . . . . Z-Technician 3 | . . . . . . . . . . . . 3 . . . . . . . . . . . . . . . . . . . . . . . . . . Z-Light 6 | . . . . . . . . . . . . 6 . . . . . . . . . . . . . . . . . . . . . . . . . . Assembled 14 | . . . 3 5 . . . . . . . 6 . . . . . . . . . . . . . . . . . . . . . . . . . . Golem 6 | . . . . . . . . . . . . 6 . . . . . . . . . . . . . . . . . . . . . . . . . . Guerrilla 2 | . . . . . . . . . . . . . . . . . . . . . . . . 1 1 . . . . . . . . . . . . . Mutant 5 | . . . . . . . . . . . 5 . . . . . . . . . . . . . . . . . . . . . . . . . . . Best Kill Streak 223 | . 5 2 9 5 14 5 . 9 5 4 13 6 4 8 4 5 2 . 4 5 3 5 13 8 6 3 12 6 5 . 4 9 29 5 16 13 223 7 Combat Bots Only 188 | . 4 . 3 3 3 4 . 7 5 4 5 6 4 5 4 3 2 . 4 5 3 5 9 4 5 3 9 6 5 . 4 8 12 4 11 9 188 7 Max Kills in Single Turn 181 | . 2 1 3 2 3 2 . 4 2 2 2 2 1 2 2 3 1 . 2 5 2 2 5 3 2 1 2 2 2 . 3 2 6 3 3 4 181 3 Gunslinging 2 | . . . . 1 . . . . . 1 1 1 . 1 . . . . . . . . . . 1 . . 1 . . 1 1 1 1 1 1 2 1 Exploded 163 | . . . 2 . . . . 3 . . . . . . . . . . . 5 . . 5 . . . . . . . . . . . . . 163 . Melee 1 | . . . . . . . . 1 . . 1 1 1 1 . 1 . . . . 1 . . . . . . . 1 . . . . 1 1 . 1 1 Uniques/NPCs Destroyed 10 | . . . 2 . . . . . . . 1 . . . . . . . . . . . . . 1 . . . . . . . . . . . 1 5 EX-BIN (-10/Exiles) 8R-AWN (-10/Exiles) EX-HEX (-10/Exiles) EX-DEC (-10/Exiles) Imprinter (-7/Zion) A7 (-5/Cetus) MAIN.C Shell (-1/Command) MAIN.C (-1/Command) A8 (-1/Access_0) A4 (-1/Access_0) A2 (-1/Access_0) A3 (-1/Access_0) Architect (-1/Access_0) Combat | -11 -10 -10 -10 -9 -8 -7 -7 -7 -7 -7 -7 -7 -6 -6 -6 -6 -6 -6 -6 -5 -5 -5 -5 -5 -5 -5 -5 -4 -4 -4 -3 -3 -2 -2 -2 -1 -1 -1 -------- Run | Scr Mat Min Exi Min Mat Fac Was Fac Low Low Zio Dee Pro Fac Was Fac Low Low Dat Pro Fac Was Fac Ext Cet Arc Hub Fac Arm Lab Res Tes Res Qua Sec Acc Com Ac0 Damage Taken 22653 | . 471 . 631 161 520 860 . 647 220 160 276 486 700 469 . 797 113 . . 67 97 . 273 672 73 50 1321 597 244 . 563 185 784 1122 3623 1590 2780 2101 Core 17901 | . 336 . 465 143 429 688 . 539 187 130 218 407 585 387 . 632 89 . . 52 81 . 221 541 58 39 923 426 191 . 414 141 633 850 2937 1262 2193 1704 Absorbed by Shields 6240 | . . . . . . . . . . . . . . . . . . . . . . . . 63 69 . . . . . . . . . 12 1105 2823 2168 Redirected to Core 15017 | . 271 . 356 68 326 566 . 330 119 110 189 294 412 293 . 602 89 . . 52 63 . 187 483 48 39 783 409 191 . 348 118 526 721 2530 1148 1985 1361 Core Remaining (%) 70 | 100 . . . 37 100 . . . . . . . 62 . . . . . . 96 . . . . . . 13 . . 100 . 91 . . 15 . . 89 Volleys Fired 2310 | . 66 4 142 17 75 95 8 81 26 10 34 45 29 52 21 80 12 . 9 3 10 15 50 34 21 6 40 37 42 . 33 32 49 74 171 115 517 255 Largest 4 | . 2 2 2 2 2 2 2 2 2 2 2 2 2 2 2 2 2 . 2 1 2 2 4 4 4 4 4 4 4 . 4 4 4 4 4 4 4 4 Hottest 140 | . 100 90 90 60 60 60 60 60 60 60 60 60 60 60 60 60 60 . 60 46 60 60 140 140 140 140 140 140 140 . 140 140 140 140 140 140 140 140 Shots Fired 7143 | . 132 8 273 34 150 190 16 162 52 20 63 89 58 104 42 160 24 . 18 3 20 30 96 136 54 24 156 145 168 . 132 111 196 284 639 452 1916 986 Gun 7116 | . 132 8 270 34 150 190 16 162 52 20 58 89 58 104 42 160 24 . 18 . 20 30 92 136 44 24 156 144 168 . 132 111 196 284 639 452 1915 986 Cannon . | . . . . . . . . . . . . . . . . . . . . . . . . . . . . . . . . . . . . . . . Launcher 11 | . . . 3 . . . . . . . . . . . . . . . . 3 . . 4 . . . . . . . . . . . . . 1 . Special 16 | . . . . . . . . . . . 5 . . . . . . . . . . . . . 10 . . 1 . . . . . . . . . . Kinetic 6723 | . 2 . 34 34 150 190 16 162 52 20 58 88 58 104 42 160 24 . 18 . 20 30 92 136 44 24 156 144 168 . 132 111 196 284 639 452 1897 986 Thermal 52 | . 36 . . . . . . . . . 5 1 . . . . . . . . . . . . 9 . . . . . . . . . . . 1 . Explosive 3 | . . . 3 . . . . . . . . . . . . . . . . . . . . . . . . . . . . . . . . . . . Electromagnetic 363 | . 94 8 236 . . . . . . . . . . . . . . . . 3 . . 4 . . . . . . . . . . . . . 18 . Robot Hit Streak 94 | . 11 10 27 6 7 7 4 16 14 8 9 8 14 13 6 10 5 . 6 . 5 11 20 48 18 32 16 32 15 . 25 28 36 48 43 53 86 94 Robot Miss Streak 5 | . 5 . 4 3 5 5 1 5 2 1 4 3 3 4 2 5 3 . 1 1 3 3 3 1 2 1 2 2 4 . 2 3 3 3 2 2 3 2 Penetration Max 4 | . . . 2 1 2 1 . 2 1 2 1 2 1 2 1 1 1 . 1 . 1 1 2 2 1 . 3 1 1 . 1 1 2 2 3 2 4 2 Secondary Targets 118 | . 1 . . 1 1 1 . . 1 1 2 3 3 2 . . . . . . 1 1 . 3 2 . 2 3 . . 2 2 5 4 9 8 51 9 Max Gunslinging Chain 2 | . 1 . . 1 1 1 . . 1 1 1 1 1 1 . . . . . . 1 1 . 1 1 . 1 2 . . 1 1 1 1 1 1 2 2 Shots Hit Robots 5282 | . 69 3 224 14 67 89 10 91 37 15 48 51 50 60 26 80 10 . 9 . 17 21 60 106 45 18 80 107 112 . 85 66 154 214 505 333 1519 887 Core Hits 3232 | . 30 2 54 14 51 54 2 67 14 11 24 33 18 39 11 53 8 . 10 6 13 13 42 51 29 11 48 53 68 . 36 40 82 94 268 209 1148 526 Critical Hits 2897 | . . . 14 10 51 64 6 58 22 8 19 34 23 46 12 45 10 . 9 . 7 10 43 57 26 8 46 45 57 . 54 41 103 107 301 220 943 398 Critical Kills 881 | . . . 5 6 25 27 2 26 7 3 9 20 6 19 6 16 3 . 5 . 2 5 18 19 11 3 24 21 17 . 18 20 38 32 82 73 276 37 Critical Parts Destroyed 1444 | . . . 6 4 26 33 3 29 15 5 9 14 12 26 3 29 7 . 2 . 5 3 23 30 14 4 22 22 32 . 25 21 45 54 160 102 449 210 Melee Attacks 311 | . . . . . . 4 . 11 . 5 20 3 11 17 . 54 13 . 1 . 12 . 24 . 6 . 6 8 22 3 . 13 2 13 20 3 22 18 Impact . | . . . . . . . . . . . . . . . . . . . . . . . . . . . . . . . . . . . . . . . Slashing 5 | . . . . . . 4 . 1 . . . . . . . . . . . . . . . . . . . . . . . . . . . . . . Piercing 306 | . . . . . . . . 10 . 5 20 3 11 17 . 54 13 . 1 . 12 . 24 . 6 . 6 8 22 3 . 13 2 13 20 3 22 18 Sneak Attacks 24 | . . . . . . . . 1 . . 2 . . . . 6 . . 1 . 4 . 1 . 6 . . 3 . . . . . . . . . . Combat Hostiles 3 | . . . . . . . . . . . . . . . . 1 . . . . 2 . . . . . . . . . . . . . . . . . Follow-up Attacks . | . . . . . . . . . . . . . . . . . . . . . . . . . . . . . . . . . . . . . . . Damage Inflicted 232467 | . 1203 46 899 350 1578 2467 193 3450 692 401 1256 1188 1059 1681 570 3224 305 . 383 217 825 490 2288 1579 1002 268 1553 1584 1586 . 1065 914 2576 2777 7998 5470 169467 9863 Guns 76247 | . 1035 46 690 350 1578 2082 193 2206 692 401 698 1135 810 1490 570 1811 305 . 289 . 342 490 1332 1579 414 268 1184 1268 1543 . 1065 914 2375 2253 7605 5470 22436 9328 Cannons . | . . . . . . . . . . . . . . . . . . . . . . . . . . . . . . . . . . . . . . . Explosions 149917 | . 168 . 209 . . 385 . 1004 . . . . . 87 . 412 . . . 217 . . 830 . . . 369 . . . . . 201 . . . 146035 . Melee 6109 | . . . . . . . . 240 . . 515 53 249 104 . 1001 . . 94 . 483 . 126 . 437 . . 316 43 . . . . 524 393 . 996 535 Ramming . | . . . . . . . . . . . . . . . . . . . . . . . . . . . . . . . . . . . . . . . Kinetic 74708 | . 29 . 423 350 1578 2082 193 2206 692 401 698 1108 810 1490 570 1811 305 . 289 . 342 490 1332 1579 414 268 1184 1268 1543 . 1065 914 2375 2253 7605 5470 22243 9328 Thermal 148369 | . 376 . 8 . . 385 . 391 . . 43 27 . 87 . 213 . . . 99 . . 554 . 151 . . . . . . . . . . . 146035 . Explosive 1326 | . 114 . 201 . . . . 613 . . . . . . . 197 . . . . . . . . . . . . . . . . 201 . . . . . Electromagnetic 1955 | . 684 46 267 . . . . . . . . . . . . 2 . . . 118 . . 276 . . . 369 . . . . . . . . . 193 . Impact . | . . . . . . . . . . . . . . . . . . . . . . . . . . . . . . . . . . . . . . . Slashing . | . . . . . . . . . . . . . . . . . . . . . . . . . . . . . . . . . . . . . . . Piercing 6109 | . . . . . . . . 240 . . 515 53 249 104 . 1001 . . 94 . 483 . 126 . 437 . . 316 43 . . . . 524 393 . 996 535 Highest Corruption 26 | . . . . . . 1 1 1 1 1 1 . . . . 2 2 . . . . . 2 . . . 12 . . . . . . 3 26 19 23 1 Average Corruption 7 | . . . . . . 1 1 1 1 1 1 . . . . 1 1 . . . . . 1 . . . 8 . . . . . . 1 8 5 13 1 Corruption Purged 30 | . . . . . . . . . . . . . . . . . 2 . . . . . 2 . . . . . . . . . . . . . 26 . Effects 795 | . . . . . . 3 1 5 1 1 . . . . . 8 . . . . . . 5 . . . 4 . . . . . . 8 115 49 577 18 Message Errors 73 | . . . . . . . 1 3 . . . . . . . 2 . . . . . . 4 . . . 1 . . . . . . 2 8 1 49 2 Matter Fused 61 | . . . . . . . . . . . . . . . . . . . . . . . . . . . . . . . . . . . 9 . 52 . Heat Flow Errors 42 | . . . . . . . . . . . . . . . . 1 . . . . . . . . . . . . . . . . . . 3 4 34 . Energy Discharges 37 | . . . . . . . . 1 1 . . . . . . 3 . . . . . . . . . . . . . . . . . 1 6 3 19 3 Parts Rejected 5 | . . . . . . . . . . . . . . . . . . . . . . . . . . . . . . . . . . . 1 . 4 . Data Loss (minor) 44 | . . . . . . . . 1 . . . . . . . 2 . . . . . . . . . . . . . . . . . . 5 2 33 1 Data Loss (major) 11 | . . . . . . . . . . . . . . . . . . . . . . . . . . . . . . . . . . . 2 . 9 . Misfires 11 | . . . . . . . . . . . . . . . . . . . . . . . . . . . . . . . . . . . 3 . 8 . Alerts 7 | . . . . . . . . . . . . . . . . . . . . . . . . . . . . . . . . . . . 2 . 5 . Misdirections 59 | . . . . . . . . . . . . . . . . . . . . . . . . . . . 3 . . . . . . . 12 5 39 . Targeting Errors 369 | . . . . . . 3 . . . 1 . . . . . . . . . . . . . . . . . . . . . . . 5 57 30 267 6 Weapon Failures 76 | . . . . . . . . . . . . . . . . . . . . . . . 1 . . . . . . . . . . . 7 4 58 6 Overload Shots . | . . . . . . . . . . . . . . . . . . . . . . . . . . . . . . . . . . . . . . . Overflow Damage 18985 | . 12 . . . . 84 . 102 . . 95 . . . . 323 . . . . 102 . 35 . . . 40 71 . . . . 45 . . . 18076 . Projectiles . | . . . . . . . . . . . . . . . . . . . . . . . . . . . . . . . . . . . . . . . Explosions 18476 | . 12 . . . . 84 . 102 . . . . . . . 82 . . . . . . 35 . . . 40 . . . . . 45 . . . 18076 . Melee 509 | . . . . . . . . . . . 95 . . . . 241 . . . . 102 . . . . . . 71 . . . . . . . . . . Knockbacks . | . . . . . . . . . . . . . . . . . . . . . . . . . . . . . . . . . . . . . . . Impact . | . . . . . . . . . . . . . . . . . . . . . . . . . . . . . . . . . . . . . . . Kinetic . | . . . . . . . . . . . . . . . . . . . . . . . . . . . . . . . . . . . . . . . Secondary . | . . . . . . . . . . . . . . . . . . . . . . . . . . . . . . . . . . . . . . . Self-Inflicted Damage 682 | . . . 39 . . 81 . . . . . . . . . 288 . . . . . . . . . . 274 . . . . . . . . . . . Shots 8 | . . . 1 . . 1 . . . . . . . . . 3 . . . . . . . . . . 3 . . . . . . . . . . . Rammed . | . . . . . . . . . . . . . . . . . . . . . . . . . . . . . . . . . . . . . . . Targets Rammed . | . . . . . . . . . . . . . . . . . . . . . . . . . . . . . . . . . . . . . . . Kicked . | . . . . . . . . . . . . . . . . . . . . . . . . . . . . . . . . . . . . . . . Crushed . | . . . . . . . . . . . . . . . . . . . . . . . . . . . . . . . . . . . . . . . Highest Temperature 298 | . 12 . . . . . . . . . . . . . . 147 298 . 24 19 54 24 204 266 196 181 245 265 119 . 60 100 35 12 186 204 216 . Average Temperature 56 | . 4 . . . . . . . . . . . . . . 36 140 . 10 19 21 10 48 87 84 94 76 98 26 . 26 17 7 4 71 86 76 . Received Heat Transfer 2312 | . 267 . . . 171 111 . 96 78 81 9 111 99 204 . 117 54 . . . 45 . 9 188 12 . 27 75 21 . 75 21 117 54 63 22 104 81 Effects 5 | . . . . . . . . . . . . . . . . . 2 . . . . . 2 . . . . . . . . . . . . . 1 . Energy Bleed 1 | . . . . . . . . . . . . . . . . . . . . . . . . . . . . . . . . . . . . . 1 . Interference 4 | . . . . . . . . . . . . . . . . . 2 . . . . . 2 . . . . . . . . . . . . . . . Siege Activations . | . . . . . . . . . . . . . . . . . . . . . . . . . . . . . . . . . . . . . . . Robots Corrupted 4 | . . . 1 . . . . . . . . . . . . . . . . . . . . . . . 1 . . . . . . . . . 2 . Combat Hostiles 3 | . . . 1 . . . . . . . . . . . . . . . . . . . . . . . . . . . . . . . . . 2 . Parts Fried 16 | . 4 . 2 . . . . . . . . . . . . . . . . . . . 2 . . . 4 . . . . . . . . . 4 . Impact Corruptions . | . . . . . . . . . . . . . . . . . . . . . . . . . . . . . . . . . . . . . . . Robots Melted . | . . . . . . . . . . . . . . . . . . . . . . . . . . . . . . . . . . . . . . . Combat Hostiles . | . . . . . . . . . . . . . . . . . . . . . . . . . . . . . . . . . . . . . . . Parts Melted 11 | . 1 . 7 . . . . . . . . . . . . 1 . . . . . . 2 . . . . . . . . . . . . . . . Heat Transferred 4422 | . 1012 . 12 . . 250 . 250 . . 36 37 . 50 . 100 . . . 150 . . 400 . 165 . . . . . . . . . . . 1960 . Parts Sabotaged . | . . . . . . . . . . . . . . . . . . . . . . . . . . . . . . . . . . . . . . . Parts Stolen . | . . . . . . . . . . . . . . . . . . . . . . . . . . . . . . . . . . . . . . . Parts Stripped . | . . . . . . . . . . . . . . . . . . . . . . . . . . . . . . . . . . . . . . . Power Chain Reactions 5 | . 1 . 1 . . . . . . . . . . . . . . . . 2 . . 1 . . . . . . . . . . . . . . . Missiles Intercepted . | . . . . . . . . . . . . . . . . . . . . . . . . . . . . . . . . . . . . . . . Alert | -11 -10 -10 -10 -9 -8 -7 -7 -7 -7 -7 -7 -7 -6 -6 -6 -6 -6 -6 -6 -5 -5 -5 -5 -5 -5 -5 -5 -4 -4 -4 -3 -3 -2 -2 -2 -1 -1 -1 ------- Run | Scr Mat Min Exi Min Mat Fac Was Fac Low Low Zio Dee Pro Fac Was Fac Low Low Dat Pro Fac Was Fac Ext Cet Arc Hub Fac Arm Lab Res Tes Res Qua Sec Acc Com Ac0 Peak Influence 2839 | . 377 219 . 70 734 1405 449 874 . . . . . 595 268 654 . . . . 633 166 706 440 484 181 599 1087 848 . 400 462 768 460 1061 1868 2839 . Average Influence 367 | . 124 185 . 38 366 764 449 474 . . . . . 208 250 197 . . . . 245 163 172 186 77 135 265 658 664 . 98 165 469 148 405 831 1779 . Maximum Alert Level 5 | . 1 1 . . 3 4 2 3 . . . . . 2 1 2 . . . . 2 . 3 2 2 . 2 3 3 . 2 2 3 2 3 5 5 . Low Security (%) 31 | 100 78 51 . 100 27 . . 1 . . . . . 54 . 63 . . . . 76 100 56 54 88 100 35 . . . 76 60 9 74 28 5 . . Level 1 18 | . 21 48 . . 25 2 . 47 . . . . . 30 100 20 . . . . . . 35 42 4 . 45 29 . . 19 31 14 20 27 35 . . Level 2 14 | . . . . . 40 43 100 35 . . . . . 14 . 15 . . . . 23 . 8 2 7 . 18 29 62 . 4 8 67 5 32 14 . . Level 3 5 | . . . . . 6 39 . 15 . . . . . . . . . . . . . . . . . . . 41 37 . . . 8 . 11 3 . . Level 4 2 | . . . . . . 14 . . . . . . . . . . . . . . . . . . . . . . . . . . . . . 30 2 . Level 5 26 | . . . . . . . . . . . . . . . . . . . . . . . . . . . . . . . . . . . . . 94 . High Security 1 | . . . . . . . . . . . . . . . . . . . . . . . . . . . . . . . . . . . . 10 2 . Max Security . | . . . . . . . . . . . . . . . . . . . . . . . . . . . . . . . . . . . . . . . Squads Dispatched 114 | . 5 . . . 4 8 . 4 . . . . . 8 . 10 . . . . 2 . 4 . . . 4 3 1 . 1 4 1 2 25 21 7 . Investigation 18 | . 3 . . . 2 4 . 1 . . . . . 3 . 3 . . . . . . 1 . . . 1 . . . . . . . . . . . Extermination 17 | . . . . . . 1 . . . . . . . 1 . 1 . . . . . . 1 . . . 1 2 1 . . 3 . 1 3 2 . . Reinforcement 25 | . 2 . . . . 2 . 1 . . . . . 2 . 2 . . . . . . 1 . . . 1 1 . . 1 1 1 1 5 2 2 . Assault 18 | . . . . . . 1 . 1 . . . . . 2 . 3 . . . . . . 1 . . . . . . . . . . . . 5 5 . Garrison 7 | . . . . . 2 . . 1 . . . . . . . 1 . . . . 2 . . . . . 1 . . . . . . . . . . . Intercept 29 | . . . . . . . . . . . . . . . . . . . . . . . . . . . . . . . . . . . 17 12 . . Construction Impeded 2 | . . . . . . 1 . . . . . . . . . . . . . . . . . . . . . . . . . . . . 1 . . . Haulers Reinforced 9 | . . . . . . . . . . . . . . 2 . 1 . . . . . . . . . . . . . . 1 . 1 . 2 2 . . Stealth | -11 -10 -10 -10 -9 -8 -7 -7 -7 -7 -7 -7 -7 -6 -6 -6 -6 -6 -6 -6 -5 -5 -5 -5 -5 -5 -5 -5 -4 -4 -4 -3 -3 -2 -2 -2 -1 -1 -1 --------- Run | Scr Mat Min Exi Min Mat Fac Was Fac Low Low Zio Dee Pro Fac Was Fac Low Low Dat Pro Fac Was Fac Ext Cet Arc Hub Fac Arm Lab Res Tes Res Qua Sec Acc Com Ac0 Distress Signals 46 | . 4 . . 1 1 1 . . . . . . . 3 . 4 . . . . 1 . 6 2 1 . 2 . 3 . 1 1 1 1 3 3 7 . Communications Jammed . | . . . . . . . . . . . . . . . . . . . . . . . . . . . . . . . . . . . . . . . Distress Signals . | . . . . . . . . . . . . . . . . . . . . . . . . . . . . . . . . . . . . . . . Times Spotted 1005 | . 28 . 11 8 24 35 . 34 10 7 17 17 8 29 6 38 5 . 2 8 5 5 29 21 6 2 41 25 20 . 10 18 27 26 84 57 277 65 Peak Tracking Total 81 | . 4 . 9 2 4 4 . 5 5 4 8 4 4 5 2 4 4 . 1 5 3 3 7 4 5 1 17 4 5 . 6 3 6 3 10 11 81 8 Tactical Retreats 53 | . 1 . 2 . . 4 . 2 . 1 2 . 2 1 . 3 1 . . . . . 3 1 . . 3 . . . 2 2 . . 5 . 16 2 Traps | -11 -10 -10 -10 -9 -8 -7 -7 -7 -7 -7 -7 -7 -6 -6 -6 -6 -6 -6 -6 -5 -5 -5 -5 -5 -5 -5 -5 -4 -4 -4 -3 -3 -2 -2 -2 -1 -1 -1 ------- Run | Scr Mat Min Exi Min Mat Fac Was Fac Low Low Zio Dee Pro Fac Was Fac Low Low Dat Pro Fac Was Fac Ext Cet Arc Hub Fac Arm Lab Res Tes Res Qua Sec Acc Com Ac0 Traps Triggered 19 | . 3 . . 2 . 1 . 4 . . . . . 1 . 1 . . . . 1 . 1 1 . . 1 . . . 1 . . 1 1 . . . Indirectly 2 | . . . . . . . . . . . . . . . . 1 . . . . . . 1 . . . . . . . . . . . . . . . Trap Hack Attempts . | . . . . . . . . . . . . . . . . . . . . . . . . . . . . . . . . . . . . . . . Triggered . | . . . . . . . . . . . . . . . . . . . . . . . . . . . . . . . . . . . . . . . Disarmed 3 | . . . . . . . . . . . . . . . . . . . . . . . . . . . 3 . . . . . . . . . . . Reprogrammed . | . . . . . . . . . . . . . . . . . . . . . . . . . . . . . . . . . . . . . . . Reused . | . . . . . . . . . . . . . . . . . . . . . . . . . . . . . . . . . . . . . . . Traps Extracted . | . . . . . . . . . . . . . . . . . . . . . . . . . . . . . . . . . . . . . . . Installed . | . . . . . . . . . . . . . . . . . . . . . . . . . . . . . . . . . . . . . . . Triggered 2 | . . . . . . . . . . 2 . . . . . . . . . . . . . . . . . . . . . . . . . . . . Machines | -11 -10 -10 -10 -9 -8 -7 -7 -7 -7 -7 -7 -7 -6 -6 -6 -6 -6 -6 -6 -5 -5 -5 -5 -5 -5 -5 -5 -4 -4 -4 -3 -3 -2 -2 -2 -1 -1 -1 ---------- Run | Scr Mat Min Exi Min Mat Fac Was Fac Low Low Zio Dee Pro Fac Was Fac Low Low Dat Pro Fac Was Fac Ext Cet Arc Hub Fac Arm Lab Res Tes Res Qua Sec Acc Com Ac0 Machines Disabled 174 | . 9 4 9 1 7 10 . 21 1 . . 3 1 12 . 19 . . . . . . 19 1 2 1 12 1 5 1 1 7 1 4 9 . 3 10 Max in Single Turn 17 | . 2 3 2 1 2 2 . 17 1 . . 1 1 6 . 4 . . . . . . 14 1 1 1 5 1 1 1 1 1 1 1 1 . 2 2 Garrison Access 16 | . . . . . 1 2 . 2 . . . . . 1 . 3 . . . . . . 1 . . . 2 . . . . 1 . 1 1 1 . . Phase Generator 1 | . . . . . . . . . . . . . . . . . . . . . . . . . . . . . . . . . . . . . 1 . Network Hub 4 | . . . . . . . . . . . . . . . . . . . . . . . . . . . 4 . . . . . . . . . . . Energy Cycler 1 | . . . . . . . . . . . . . . . . . . . . . . . . 1 . . . . . . . . . . . . . . Machines Sabotaged . | . . . . . . . . . . . . . . . . . . . . . . . . . . . . . . . . . . . . . . . Garrisons Compromised . | . . . . . . . . . . . . . . . . . . . . . . . . . . . . . . . . . . . . . . . Overloaded Fab Kills . | . . . . . . . . . . . . . . . . . . . . . . . . . . . . . . . . . . . . . . . Fab Network Shutdowns 9 | . . . . . . 1 . . . . . . . 1 . 1 . . . . 1 . 1 . . . . 1 . . 1 1 . . . 1 . . Hacking | -11 -10 -10 -10 -9 -8 -7 -7 -7 -7 -7 -7 -7 -6 -6 -6 -6 -6 -6 -6 -5 -5 -5 -5 -5 -5 -5 -5 -4 -4 -4 -3 -3 -2 -2 -2 -1 -1 -1 --------- Run | Scr Mat Min Exi Min Mat Fac Was Fac Low Low Zio Dee Pro Fac Was Fac Low Low Dat Pro Fac Was Fac Ext Cet Arc Hub Fac Arm Lab Res Tes Res Qua Sec Acc Com Ac0 Machines Accessed 203 | . 6 . 1 1 8 10 . 15 . . . . . 13 . 19 . 1 4 . 2 . 18 9 1 . 13 4 9 . 8 15 5 12 15 7 6 1 Terminals 152 | . 4 . . . 7 7 . 10 . . . . . 11 . 14 . . . . 1 . 16 9 1 . 11 3 5 . 6 11 5 10 12 5 4 . Fabricators 17 | . . . . . . 1 . 2 . . . . . 1 . 2 . . . . 1 . 1 . . . . 1 4 . 2 1 . . . 1 . . Repair Stations 1 | . . . . . . . . 1 . . . . . . . . . . . . . . . . . . . . . . . . . . . . . . Recycling Units 4 | . 2 . . . . . . . . . . . . . . . . . . . . . . . . . . . . . . . . . . . 2 . Scanalyzers 5 | . . . . . . . . . . . . . . . . . . . . . . . . . . . . . . . . 2 . 1 2 . . . Garrison Access 16 | . . . . . 1 2 . 2 . . . . . 1 . 3 . . . . . . 1 . . . 2 . . . . 1 . 1 1 1 . . Total Hacks 803 | . 13 . 1 1 23 31 . 54 . . . . . 54 . 63 . 8 27 . 11 . 65 35 6 . 50 24 44 . 41 49 25 35 68 45 27 3 Successful 688 | . 9 . 1 1 16 16 . 40 . . . . . 41 . 63 . 8 27 . 11 . 63 35 6 . 44 20 40 . 36 48 24 34 48 35 19 3 Failed 114 | . 4 . . . 7 14 . 14 . . . . . 13 . . . . . . . . 2 . . . 6 4 4 . 5 1 1 1 20 10 8 . Catastrophic 12 | . . . . . 1 1 . 2 . . . . . 5 . . . . . . . . . . . . . . . . . . . . 3 . . . Database Lockouts 1 | . . . . . . 1 . . . . . . . . . . . . . . . . . . . . . . . . . . . . . . . . Manual 559 | . 13 . 1 . 21 15 . 37 . . . . . 37 . 44 . . . . 5 . 42 27 7 . 46 20 28 . 28 29 23 30 53 32 21 . Terminals 610 | . 11 . . . 22 26 . 37 . . . . . 40 . 47 . . . . 3 . 54 35 6 . 48 19 22 . 30 32 25 32 64 32 25 . Fabricators 119 | . . . . . . 3 . 12 . . . . . 13 . 13 . . . . 8 . 10 . . . . 5 22 . 11 10 . . . 12 . . Repair Stations 2 | . . . . . . . . 2 . . . . . . . . . . . . . . . . . . . . . . . . . . . . . . Recycling Units 4 | . 2 . . . . . . . . . . . . . . . . . . . . . . . . . . . . . . . . . . . 2 . Scanalyzers 11 | . . . . . . . . . . . . . . . . . . . . . . . . . . . . . . . . 6 . 2 3 . . . Garrison Access 17 | . . . . . 1 2 . 3 . . . . . 1 . 3 . . . . . . 1 . . . 2 . . . . 1 . 1 1 1 . . Terminal Hacks 402 | . 2 . 1 1 8 10 . 16 . . . . . 15 . 32 . 8 27 . 2 . 36 27 6 . 32 11 13 . 22 22 20 22 34 18 14 3 Record 25 | . . . . . . . . . . . . . . . . 2 . 8 11 . . . . . . . . . . . 1 1 1 1 . . . . Part Schematic 42 | . . . . . . 2 . 1 . . . . . 3 . 3 . . 7 . . . 6 3 . . . 3 3 . 6 4 1 . . . . . Robot Schematic 6 | . . . . . . . . . . . . . . . . . . . 6 . . . . . . . . . . . . . . . . . . . Robot Analysis 1 | . . . . . . . . . . . . . . . . . . . . . . . 1 . . . . . . . . . . . . . . . Prototype ID Bank 18 | . . . . . . . . 1 . . . . . . . 1 . . 3 . . . 2 1 . . 5 2 . . . . . . 1 2 . . Open Door 13 | . . . . 1 . . . . . . . . . . . . . . . . . . 2 3 . . . . 1 . . 1 . 2 3 . . . Level Access Points 4 | . . . . . . . . . . . . . . . . . . . . . . . . . . . 1 . 1 . . 1 . . 1 . . . Branch Access Points 14 | . . . . . 1 1 . 1 . . . . . 1 . 2 . . . . . . 1 1 . . . 1 1 . 1 . 1 . . 2 . . Emergency Access Points 1 | . . . . . . . . . . . . . . . . . . . . . . . . . . . 1 . . . . . . . . . . . Machine Index 3 | . . . . . . 1 . . . . . . . . . . . . . . . . . . . . . . . . 1 . . . . . 1 . Terminal Index 15 | . . . . . . . . 1 . . . . . . . 1 . . . . 1 . 1 2 . . 1 1 1 . 1 1 1 1 1 1 . . Fabricator Index 10 | . . . . . . . . 1 . . . . . . . 1 . . . . . . 1 . . . . 1 1 . 1 1 1 1 . 1 . . Repair Station Index 1 | . . . . . . . . 1 . . . . . . . . . . . . . . . . . . . . . . . . . . . . . . Scanalyzer Index 1 | . . . . . . . . . . . . . . . . . . . . . . . . . . . . . . . . . . . 1 . . . Garrison Index 2 | . . . . . . . . . . . . . . . . . . . . . . . . . . . . . . . . . . . 1 1 . . Alert Level 63 | . 1 . . . 2 1 . 2 . . . . . . . 7 . . . . . . 5 6 1 . 5 1 1 . 4 3 3 6 8 3 4 . Unreport Threat 80 | . . . . . . 1 . 4 . . . . . 5 . 6 . . . . . . 5 5 5 . 7 . 1 . 5 4 7 6 10 3 6 . Locate Traps 4 | . . . . . . 1 . . . . . . . 1 . . . . . . . . . 1 . . 1 . . . . . . . . . . . Disarm Traps 1 | . . . . . . . . . . . . . . . . . . . . . . . . . . . 1 . . . . . . . . . . . Patrol Status 1 | . . . . . . . . . . . . . . . . . . . . . . . . . . . . . 1 . . . . . . . . . Recall Investigation 2 | . . . . . . 1 . . . . . . . . . 1 . . . . . . . . . . . . . . . . . . . . . . Recall Extermination 7 | . . . . . . . . . . . . . . 1 . 1 . . . . . . 1 . . . . 1 1 . . 2 . . . . . . Recall Reinforcements 3 | . . . . . . . . . . . . . . . . . . . . . . . 2 . . . 1 . . . . . . . . . . . Recall Assault 6 | . . . . . . 2 . . . . . . . 1 . 1 . . . . . . 2 . . . . . . . . . . . . . . . Hauler Manifests 7 | . . . . . . . . . . . . . . 1 . 1 . . . . 1 . 1 . . . . 1 . . . . 1 . 1 . . . Registered Components 1 | . . . . . . . . . . . . . . . . . . . . . . . . . . . 1 . . . . . . . . . . . Registered Prototypes 1 | . . . . . . . . . . . . . . . . . . . . . . . . . . . . . . . . . 1 . . . . . Zone Layout 65 | . 1 . . . 5 . . 4 . . . . . 2 . 5 . . . . . . 6 5 . . 8 . 1 . 2 4 3 5 7 5 2 . EX-Prototype ID Bank 1 | . . . 1 . . . . . . . . . . . . . . . . . . . . . . . . . . . . . . . . . . . Disengage Seal 1 | . . . . . . . . . . . . . . . . . . . . . . . . . . . . . . . . . . . . . 1 . Gate Test 138-A 1 | . . . . . . . . . . . . . . . . . . . . . . . . . . . . . . . . . . . . . . 1 Gate Test 138-B 1 | . . . . . . . . . . . . . . . . . . . . . . . . . . . . . . . . . . . . . . 1 Gate Test 138-END 1 | . . . . . . . . . . . . . . . . . . . . . . . . . . . . . . . . . . . . . . 1 Fabricator Hacks 74 | . . . . . . 2 . 6 . . . . . 10 . 8 . . . . 5 . 7 . . . . 2 12 . 6 7 . . . 9 . . Network Status 1 | . . . . . . . . . . . . . . . . . . . . . . . . . . . . . . . . . . . . 1 . . Load Schematic 27 | . . . . . . 1 . 2 . . . . . 2 . 2 . . . . 2 . 2 . . . . 1 6 . 3 2 . . . 4 . . Build 46 | . . . . . . 1 . 4 . . . . . 8 . 6 . . . . 3 . 5 . . . . 1 6 . 3 5 . . . 4 . . Repair Station Hacks 2 | . . . . . . . . 2 . . . . . . . . . . . . . . . . . . . . . . . . . . . . . . Scan Component 1 | . . . . . . . . 1 . . . . . . . . . . . . . . . . . . . . . . . . . . . . . . Repair 1 | . . . . . . . . 1 . . . . . . . . . . . . . . . . . . . . . . . . . . . . . . Recycling Unit Hacks 2 | . . . . . . . . . . . . . . . . . . . . . . . . . . . . . . . . . . . . . 2 . Retrieve Components 2 | . . . . . . . . . . . . . . . . . . . . . . . . . . . . . . . . . . . . . 2 . Scanalyzer 11 | . . . . . . . . . . . . . . . . . . . . . . . . . . . . . . . . 6 . 2 3 . . . Insert Component 7 | . . . . . . . . . . . . . . . . . . . . . . . . . . . . . . . . 2 . 2 3 . . . Analyze 4 | . . . . . . . . . . . . . . . . . . . . . . . . . . . . . . . . 4 . . . . . . Garrison Access Hacks 16 | . . . . . 1 2 . 2 . . . . . 1 . 3 . . . . . . 1 . . . 2 . . . . 1 . 1 1 1 . . Seal Access 16 | . . . . . 1 2 . 2 . . . . . 1 . 3 . . . . . . 1 . . . 2 . . . . 1 . 1 1 1 . . Unauthorized Hacks 373 | . 16 . . . 14 10 . 30 . . . . . 30 . 40 . . . . 8 . 38 16 . . 20 14 30 . 16 24 8 18 20 15 6 . Terminals 136 | . 5 . . . 7 2 . 9 . . . . . 12 . 15 . . . . 1 . 16 8 . . 10 4 5 . 3 9 4 9 10 4 3 . Track 3 | . . . . . . . . 1 . . . . . . . . . . . . . . . . . . . . . . . . . 2 . . . . Assimilate 40 | . 1 . . . . 2 . 2 . . . . . 2 . 6 . . . . . . 3 4 . . 1 2 2 . . 5 1 3 5 1 . . Botnet 88 | . 4 . . . 7 . . 5 . . . . . 8 . 8 . . . . 1 . 12 4 . . 9 2 3 . 3 4 3 4 5 3 3 . Operators 5 | . . . . . . . . 1 . . . . . 2 . 1 . . . . . . 1 . . . . . . . . . . . . . . . Fabricators 43 | . . . . . . . . 5 . . . . . 3 . 5 . . . . 3 . 3 . . . . 3 10 . 5 3 . . . 3 . . Report 11 | . . . . . . . . 1 . . . . . 1 . 1 . . . . 1 . 1 . . . . 1 2 . 1 1 . . . 1 . . Prioritize 16 | . . . . . . . . 2 . . . . . 1 . 2 . . . . 1 . 1 . . . . 1 4 . 2 1 . . . 1 . . Siphon 16 | . . . . . . . . 2 . . . . . 1 . 2 . . . . 1 . 1 . . . . 1 4 . 2 1 . . . 1 . . Repair Stations . | . . . . . . . . . . . . . . . . . . . . . . . . . . . . . . . . . . . . . . . Recycling Units 2 | . 2 . . . . . . . . . . . . . . . . . . . . . . . . . . . . . . . . . . . . . Tunnel 2 | . 2 . . . . . . . . . . . . . . . . . . . . . . . . . . . . . . . . . . . . . Scanalyzers . | . . . . . . . . . . . . . . . . . . . . . . . . . . . . . . . . . . . . . . . Garrison Access . | . . . . . . . . . . . . . . . . . . . . . . . . . . . . . . . . . . . . . . . Data Cores Recovered 4 | . . . . . . . . . . . . . . . . . . . . . . . . 2 . . . . . . . . 1 1 . . . . Used 3 | . . . . . . . . . . . . . . . . . . . . . . . . 2 . . . . . . . . 1 . . . . . Hacking Detections 106 | . 4 . . . 7 8 . 6 . . . . . 10 . 8 . . . . 2 . 11 1 . . 9 4 3 . 5 5 3 6 4 6 4 . Full Trace Events 14 | . . . . . 2 3 . 1 . . . . . 3 . 3 . . . . . . 1 . . . 1 . . . . . . . . . . . Feedback Events 2 | . . . . . . . . . . . . . . 1 . 1 . . . . . . . . . . . . . . . . . . . . . . Corruption 1 | . . . . . . . . . . . . . . . . 1 . . . . . . . . . . . . . . . . . . . . . . Hackware Fried 1 | . . . . . . . . . . . . . . 1 . . . . . . . . . . . . . . . . . . . . . . . . Feedback Blocked . | . . . . . . . . . . . . . . . . . . . . . . . . . . . . . . . . . . . . . . . Robot Schematics Acquired 6 | . . . . . . . . . . . . . . . . . . . 6 . . . . . . . . . . . . . . . . . . . Robots Built . | . . . . . . . . . . . . . . . . . . . . . . . . . . . . . . . . . . . . . . . Matter . | . . . . . . . . . . . . . . . . . . . . . . . . . . . . . . . . . . . . . . . Time . | . . . . . . . . . . . . . . . . . . . . . . . . . . . . . . . . . . . . . . . Total Robot Build Rating . | . . . . . . . . . . . . . . . . . . . . . . . . . . . . . . . . . . . . . . . Part Schematics Acquired 42 | . . . . . . 2 . 1 . . . . . 3 . 3 . . 7 . . . 6 3 . . . 3 3 . 6 4 1 . . . . . Parts Built 40 | . . . . . . 1 . 3 . . . . . 6 . 6 . . . . 3 . 5 . . . . 1 6 . 2 3 . . . 4 . . Matter 10224 | . . . . . . 190 . 617 . . . . . 954 . 1062 . . . . 660 . 1045 . . . . 351 1931 . 834 1251 . . . 1329 . . Time 3315 | . . . . . . 31 . 146 . . . . . 318 . 343 . . . . 269 . 407 . . . . 187 677 . 444 221 . . . 272 . . Total Part Build Rating 289 | . . . . . . 5 . 15 . . . . . 36 . 46 . . . . 17 . 37 . . . . 7 46 . 18 27 . . . 35 . . Parts Repaired 1 | . . . . . . . . 1 . . . . . . . . . . . . . . . . . . . . . . . . . . . . . . Time 78 | . . . . . . . . 78 . . . . . . . . . . . . . . . . . . . . . . . . . . . . . . Parts Recycled . | . . . . . . . . . . . . . . . . . . . . . . . . . . . . . . . . . . . . . . . Recycled Matter . | . . . . . . . . . . . . . . . . . . . . . . . . . . . . . . . . . . . . . . . Retrieved Matter . | . . . . . . . . . . . . . . . . . . . . . . . . . . . . . . . . . . . . . . . Retrieved Components 6 | . . . . . . . . . . . . . . . . . . . . . . . . . . . . . . . . . . . . . 6 . Parts Scanalyzed 1 | . . . . . . . . . . . . . . . . . . . . . . . . . . . . . . . . 1 . . . . . . Part Schematics Acquired . | . . . . . . . . . . . . . . . . . . . . . . . . . . . . . . . . . . . . . . . Parts Damaged . | . . . . . . . . . . . . . . . . . . . . . . . . . . . . . . . . . . . . . . . Bothacking | -11 -10 -10 -10 -9 -8 -7 -7 -7 -7 -7 -7 -7 -6 -6 -6 -6 -6 -6 -6 -5 -5 -5 -5 -5 -5 -5 -5 -4 -4 -4 -3 -3 -2 -2 -2 -1 -1 -1 ------------ Run | Scr Mat Min Exi Min Mat Fac Was Fac Low Low Zio Dee Pro Fac Was Fac Low Low Dat Pro Fac Was Fac Ext Cet Arc Hub Fac Arm Lab Res Tes Res Qua Sec Acc Com Ac0 Used RIF Installer . | . . . . . . . . . . . . . . . . . . . . . . . . . . . . . . . . . . . . . . . Robots Hacked 1 | . . . . . . . . . . . . . . . . . . . . . . . . . 1 . . . . . . . . . . . . . Non-combat . | . . . . . . . . . . . . . . . . . . . . . . . . . . . . . . . . . . . . . . . Combat 1 | . . . . . . . . . . . . . . . . . . . . . . . . . 1 . . . . . . . . . . . . . Robot Hacks Applied 1 | . . . . . . . . . . . . . . . . . . . . . . . . . 1 . . . . . . . . . . . . . parse_system 1 | . . . . . . . . . . . . . . . . . . . . . . . . . 1 . . . . . . . . . . . . . Relay Couplers Released 1 | . . . . . . . . . . . . . . . . . . . . . . . . . . . 1 . . . . . . . . . . . Machine Destruction 1 | . . . . . . . . . . . . . . . . . . . . . . . . . . . 1 . . . . . . . . . . . Robots Rewired 9 | . . . . . . . . . 1 . . . . . . . . . . . . . . 8 . . . . . . . . . . . . . . Allies Hacked . | . . . . . . . . . . . . . . . . . . . . . . . . . . . . . . . . . . . . . . . Hacks Repelled . | . . . . . . . . . . . . . . . . . . . . . . . . . . . . . . . . . . . . . . . Allies | -11 -10 -10 -10 -9 -8 -7 -7 -7 -7 -7 -7 -7 -6 -6 -6 -6 -6 -6 -6 -5 -5 -5 -5 -5 -5 -5 -5 -4 -4 -4 -3 -3 -2 -2 -2 -1 -1 -1 -------- Run | Scr Mat Min Exi Min Mat Fac Was Fac Low Low Zio Dee Pro Fac Was Fac Low Low Dat Pro Fac Was Fac Ext Cet Arc Hub Fac Arm Lab Res Tes Res Qua Sec Acc Com Ac0 Total Allies 75 | . 1 4 . . . 2 . 2 1 . . . . 2 . 5 . . . . . 18 3 14 5 . 1 2 2 . . 3 1 3 5 1 . . Largest Group 18 | . 1 4 3 . . 2 . 2 3 1 . . . 1 1 2 1 1 1 . . 18 3 11 14 7 7 2 3 2 2 3 3 3 4 1 . . Highest-Rated Group 842 | . 10 71 40 . . 52 . 52 68 26 . . . 26 26 52 26 26 26 . . 650 62 423 842 533 507 70 114 88 88 96 96 62 90 44 . . Highest-Rated Ally 156 | . 10 31 16 . . 26 . 26 26 26 . . . 26 26 26 26 26 26 . . 50 26 156 150 94 94 44 44 44 44 44 44 26 44 44 . . Total Orders 25 | . 3 . . . . 3 . 2 2 . . . . 2 . 2 . . . . . . . . 5 . . . . 2 . 2 . 2 . . . . STAY 5 | . 1 . . . . . . . 1 . . . . . . . . . . . . . . . 1 . . . . 1 . 1 . . . . . . GOTO 7 | . . . . . . 1 . 1 . . . . . 1 . 1 . . . . . . . . 2 . . . . . . . . 1 . . . . ROAM 1 | . 1 . . . . . . . . . . . . . . . . . . . . . . . . . . . . . . . . . . . . . FOLLOW 12 | . 1 . . . . 2 . 1 1 . . . . 1 . 1 . . . . . . . . 2 . . . . 1 . 1 . 1 . . . . Ally Attacks 156 | . . . 24 . . . . . 8 . . . . . . . . . . . . 2 . 29 41 9 43 . . . . . . . . . . . Total Damage 3931 | . . . 243 . . . . . 108 . . . . . . . . . . . . 47 . 726 900 370 1537 . . . . . . . . . . . Kills 25 | . . . 2 . . . . . 1 . . . . . . . . . . . . . . 7 4 1 10 . . . . . . . . . . . Allies Corrupted 2 | . . . . . . . . . . . . . . . . . . . . . . . . . . . 2 . . . . . . . . . . . Allies Melted . | . . . . . . . . . . . . . . . . . . . . . . . . . . . . . . . . . . . . . . . Intel | -11 -10 -10 -10 -9 -8 -7 -7 -7 -7 -7 -7 -7 -6 -6 -6 -6 -6 -6 -6 -5 -5 -5 -5 -5 -5 -5 -5 -4 -4 -4 -3 -3 -2 -2 -2 -1 -1 -1 ------- Run | Scr Mat Min Exi Min Mat Fac Was Fac Low Low Zio Dee Pro Fac Was Fac Low Low Dat Pro Fac Was Fac Ext Cet Arc Hub Fac Arm Lab Res Tes Res Qua Sec Acc Com Ac0 Robot Analysis Total 1 | . . . . . . . . . . . . . . . . . . . . . . . 1 . . . . . . . . . . . . . . . Derelict Logs Recovered 9 | . . 2 . 1 . . . . 2 1 . . 3 . . . . . . . . . . . . . . . . . . . . . . . . . Drone Launches . | . . . . . . . . . . . . . . . . . . . . . . . . . . . . . . . . . . . . . . . Drone Recoveries . | . . . . . . . . . . . . . . . . . . . . . . . . . . . . . . . . . . . . . . . Exploration | -11 -10 -10 -10 -9 -8 -7 -7 -7 -7 -7 -7 -7 -6 -6 -6 -6 -6 -6 -6 -5 -5 -5 -5 -5 -5 -5 -5 -4 -4 -4 -3 -3 -2 -2 -2 -1 -1 -1 ------------- Run | Scr Mat Min Exi Min Mat Fac Was Fac Low Low Zio Dee Pro Fac Was Fac Low Low Dat Pro Fac Was Fac Ext Cet Arc Hub Fac Arm Lab Res Tes Res Qua Sec Acc Com Ac0 Turns Passed 28726 | 32 987 398 1184 336 627 825 115 1076 232 135 811 434 304 1154 164 1768 176 67 74 77 403 152 1224 474 328 56 469 505 780 92 617 1043 322 802 1303 1074 6576 1530 Spaces Moved 31120 | 27 572 286 527 230 881 1444 227 1647 419 330 1041 784 380 1079 308 1906 244 160 114 209 215 376 1416 567 205 47 874 666 919 158 783 1474 478 1398 2084 1366 3057 2222 Core 104 | 10 . . . . . . . . . . . . . . . . . . . . . . . . . . . . . . . . . . 8 10 76 . Treads . | . . . . . . . . . . . . . . . . . . . . . . . . . . . . . . . . . . . . . . . Legs 1724 | 17 572 286 527 230 92 . . . . . . . . . . . . . . . . . . . . . . . . . . . . . . . . . Wheels . | . . . . . . . . . . . . . . . . . . . . . . . . . . . . . . . . . . . . . . . Hover . | . . . . . . . . . . . . . . . . . . . . . . . . . . . . . . . . . . . . . . . Flight 29292 | . . . . . 789 1444 227 1647 419 330 1041 784 380 1079 308 1906 244 160 114 209 215 376 1416 567 205 47 874 666 919 158 783 1474 478 1398 2076 1356 2981 2222 Fastest Speed 6 | 50 120 120 120 120 29 26 26 26 26 26 26 26 26 26 29 29 31 31 31 31 31 31 31 31 31 31 31 31 31 31 28 21 21 21 6 21 6 18 Average Speed 31 | 94 120 120 120 120 38 26 26 26 26 26 26 26 26 28 29 29 31 31 31 31 31 31 31 31 31 31 31 31 31 31 30 23 21 21 21 23 22 20 Slowest Speed 150 | 120 120 120 120 120 120 29 26 29 26 26 26 26 26 29 29 32 31 31 31 31 31 31 31 31 31 31 31 31 31 31 31 28 21 21 100 150 100 21 Overloaded Moves 268 | . . . . . . . . . . . . . . . . . . . . . . . . . . . . . . . . . . . 232 . 33 3 Propulsion Burnouts . | . . . . . . . . . . . . . . . . . . . . . . . . . . . . . . . . . . . . . . . Robots Hopped 190 | . . . . . 11 20 . 12 . . 1 . . 8 . 23 . . . 1 5 . 6 8 . . 16 10 1 . 11 10 4 2 16 12 10 3 Cave-ins Triggered 2 | . . . . . . . . . . . . . . . . . . . . . . . . . . . . . . . . . . . . . 1 1 Teleports 2 | . . . . . . . . . . . . . . . . . . . . . . . . . . . . . . . . . . . . . 1 1 Exploration Rate (%) 58 | 3 83 62 85 38 84 44 86 42 64 57 86 76 56 31 86 49 41 39 76 35 4 89 44 65 63 68 86 15 47 97 19 93 15 91 82 31 61 83 Regions Visited 38 Branch Regions 23 Pre-discovered Areas 5 | . 2 . . . . . . . . . 1 . . . . . . 1 1 . . . . . . . . . . . . . . . . . . . Known Exits Taken 28 | . . . 1 . 1 . . 1 1 1 1 1 1 . . 1 1 1 1 1 . . 1 1 1 1 1 1 1 1 1 1 1 1 1 1 1 . Unknown Exits Taken 4 | 1 1 1 . 1 . . . . . . . . . . . . . . . . . . . . . . . . . . . . . . . . . . Scrap Searched 19 | . . . . 2 . . . . 3 2 4 . 1 . . . 2 3 . 2 . . . . . . . . . . . . . . . . . . Spaces Dug 136 | . . . . . . 3 . 7 . 5 3 1 2 12 . 28 13 . . . 7 . 16 . . . 6 5 7 . . 5 2 . 7 3 4 . Terrain Destroyed 2255 | . 27 16 23 12 72 66 5 93 2 7 3 3 3 33 3 121 17 . . 8 7 3 57 8 2 1 497 6 11 . 3 12 22 9 46 16 978 63 Melee 135 | . . . . . . 3 . 7 . 5 3 1 2 12 . 28 13 . . . 7 . 16 . . . 6 5 7 . . 5 2 . 7 3 3 . Projectile 378 | . . . 4 12 51 11 5 11 2 2 . 2 1 14 3 15 4 . . . . 3 3 8 2 1 5 1 4 . 3 7 2 9 23 13 94 63 AOE 1742 | . 27 16 19 . 21 52 . 75 . . . . . 7 . 78 . . . 8 . . 38 . . . 486 . . . . . 18 . 16 . 881 . Actions | -11 -10 -10 -10 -9 -8 -7 -7 -7 -7 -7 -7 -7 -6 -6 -6 -6 -6 -6 -6 -5 -5 -5 -5 -5 -5 -5 -5 -4 -4 -4 -3 -3 -2 -2 -2 -1 -1 -1 --------- Run | Scr Mat Min Exi Min Mat Fac Was Fac Low Low Zio Dee Pro Fac Was Fac Low Low Dat Pro Fac Was Fac Ext Cet Arc Hub Fac Arm Lab Res Tes Res Qua Sec Acc Com Ac0 Total 45992 | 31 740 332 820 267 1061 1738 273 2161 508 358 1506 952 532 1822 355 2906 309 176 139 218 515 391 2095 802 427 77 980 879 1309 193 1097 2081 609 1756 2602 1932 8160 2883 Wait 10775 | . 63 42 113 13 47 191 5 369 40 5 407 93 95 628 20 853 33 14 6 3 271 1 579 146 184 21 46 121 282 9 268 510 48 164 176 296 4370 243 Move 30716 | 26 571 285 526 229 861 1407 226 1623 418 329 1038 783 379 1063 307 1860 243 159 113 206 207 375 1403 551 204 46 841 645 916 157 760 1453 469 1393 2051 1341 3037 2215 Hop 178 | . . . . . 8 17 . 11 . . 1 . . 8 . 22 . . . 1 3 . 6 7 . . 16 10 1 . 11 10 4 2 16 12 9 3 Pick Up 76 | . 2 . 6 1 2 3 2 4 . . 1 1 . . . . . 1 . . 1 . 4 1 . . . . 5 2 1 5 . 4 11 4 11 4 Fast Attach 157 | 5 7 1 14 2 7 4 . 17 . . . 1 . 6 . 7 . . . . 1 . 1 . 1 . . . . 9 2 16 . 7 15 6 10 18 Attach 27 | . . . 2 . 1 2 . 1 . . 2 . . . . . . . . 2 . . 2 . . . . . . 2 . 1 1 2 4 . 4 1 Detach 3 | . . . . . . . . . . . 1 . . . . . . . . 1 . . . . . . . . . . . . . . 1 . . . Swap 131 | . 2 . . . . . . 3 . . 2 2 . 3 . 4 . 1 . . 1 . 8 . 6 . 3 8 10 3 2 14 2 10 12 3 20 12 Drop 171 | . 6 . 17 . 4 5 2 15 . . . 1 1 4 . 6 . 1 . . 1 . 2 1 . . . . 6 8 2 21 . 11 17 9 14 17 Fire 2310 | . 66 4 142 17 75 95 8 81 26 10 34 45 29 52 21 80 12 . 9 3 10 15 50 34 21 6 40 37 42 . 33 32 49 74 171 115 517 255 Melee 311 | . . . . . . 4 . 11 . 5 20 3 11 17 . 54 13 . 1 . 12 . 24 . 6 . 6 8 22 3 . 13 2 13 20 3 22 18 Ram . | . . . . . . . . . . . . . . . . . . . . . . . . . . . . . . . . . . . . . . . Kick . | . . . . . . . . . . . . . . . . . . . . . . . . . . . . . . . . . . . . . . . Crush . | . . . . . . . . . . . . . . . . . . . . . . . . . . . . . . . . . . . . . . . Escape Stasis 52 | . . . . . . . . . . . . . . . . . . . . . . . . 10 . . 18 . . . . . . 18 6 . . . Rewire 22 | . . . . . . . . . 2 . . . . . . . . . . . . . . 20 . . . . . . . . . . . . . . Trap . | . . . . . . . . . . . . . . . . . . . . . . . . . . . . . . . . . . . . . . . Miscellaneous 1063 | . 23 . . 5 56 10 30 26 22 9 . 23 17 41 7 20 8 . 10 2 8 . 16 32 5 4 10 50 25 . 18 6 34 58 102 143 146 97 Route ------- -11/Scrapyard -10/Materials (discovered 4 exits: [*Mat x2] / [*Min x2]) -10/Mines (discovered 2 exits: [*Mat] / *Exi) -10/Exiles (discovered 2 exits: *Min x2) -9/Mines -8/Materials (discovered 2 exits: *Fac x2) -7/Factory (discovered 4 exits: *Fac x2 / Low x2) -7/Waste -7/Factory (discovered 4 exits: *Fac x2 / *Low x2) -7/Lower Caves -7/Lower Caves (discovered 2 exits: Fac / *Zio) -7/Zion (discovered 2 exits: *Dee / [*Pro]) -7/Deep Caves -6/Proximity Caves -6/Factory (discovered 3 exits: *Fac / Low x2) -6/Waste -6/Factory (discovered 3 exits: *Fac / *Low x2) -6/Lower Caves -6/Lower Caves -6/Data Miner -5/Proximity Caves -5/Factory -5/Waste -5/Factory (discovered 6 exits: *Fac x2 / *Upp x2 / *Ext x2) -5/Extension (discovered 2 exits: *Fac / *Cet) -5/Cetus -5/Archives (discovered 2 exits: *Hub x2) -5/Hub_04(d) (discovered 4 exits: *Fac x4) -4/Factory (discovered 4 exits: Res / Upp x2 / *Arm) -4/Armory (discovered 3 exits: Res x2 / *Lab) -4/Lab -3/Research (discovered 2 exits: *Tes x2) -3/Testing -2/Research (discovered 2 exits: *Qua x2) -2/Quarantine (discovered 2 exits: *Acc / *Sec) -2/Section 7 -1/Access -1/Command (discovered 3 exits: *Sur x2 / *Ac0) -1/Access_0 0b11 Command History --------- Turn | Location | Event 2 | -11/Scrapyard | Upgraded with Propulsion slot (x1) 2 | -11/Scrapyard | Upgraded with Utility slot (x2) 2 | -11/Scrapyard | Upgraded with Weapon slot (x1) 6 | -11/Scrapyard | Discovered new exit (range 15) 33 | -11/Scrapyard | Entered Materials 313 | -10/Materials | Build established: Mutant 368 | -10/Materials | Discovered new exit (range 16) 521 | -10/Materials | Discovered new exit (range 10) 698 | -10/Materials | Discovered new exit (range 16) 816 | -10/Materials | Reached level 2 830 | -10/Materials | Upgraded with Utility slot (x1) 865 | -10/Materials | Discovered new exit (range 12) 1020 | -10/Materials | Entered Mines 1022 | -10/Mines | Reached level 3 1022 | -10/Mines | Upgraded with Propulsion slot (x1) 1023 | -10/Mines | Received a Mining Laser from a helpful Derelict 1047 | -10/Mines | Discovered new exit (range 16) 1065 | -10/Mines | Assisted by bots powering up and referring to "LRC-V3" 1346 | -10/Mines | Learned Materials security intel 1406 | -10/Mines | Deemed a non-threat by the Exiles lab entrance 1407 | -10/Mines | Discovered new exit (range 5) 1418 | -10/Mines | Entered Exiles 1418 | -10/Exiles | Accompanied by 3 allies 1419 | -10/Exiles | Identified exit to Mines 1448 | -10/Exiles | Met 8R-AWN 1468 | -10/Exiles | Met EX-HEX 1516 | -10/Exiles | Met EX-BIN 1530 | -10/Exiles | Aligned with FarCom system 1531 | -10/Exiles | Given EX-Vault access code 1561 | -10/Exiles | Opened EX-Vault 1616 | -10/Exiles | Found AWS/Gauss 1643 | -10/Exiles | Warned to stay clear of 0b10 Research branches 1756 | -10/Exiles | Attacked by the Exiles 1762 | -10/Exiles | Destroyed EX-BIN 1844 | -10/Exiles | Core integrity fell below 50% 2244 | -10/Exiles | Destroyed 8R-AWN 2252 | -10/Exiles | Found Prototype Ballistic Gun 2252 | -10/Exiles | Identified 8R-AWN's Boregun 2255 | -10/Exiles | Found 8R-AWN's Boregun 2271 | -10/Exiles | Found Prototype Device 2271 | -10/Exiles | Identified AS-neutralizer No. 17b 2287 | -10/Exiles | Found Prototype Protection 2287 | -10/Exiles | Identified 8R-AWN's Armor/EX 2431 | -10/Exiles | Destroyed EX-HEX 2448 | -10/Exiles | Destroyed EX-DEC 2551 | -10/Exiles | Build established: Scavenger-Mutant 2602 | -10/Exiles | Entered Mines 2604 | -9/Mines | Reached level 4 2608 | -9/Mines | Upgraded with Propulsion slot (x1) 2609 | -9/Mines | Assembled infested the area 2614 | -9/Mines | Assisted by a Guerilla fighting off Assembled 2802 | -9/Mines | Met a Derelict who couldn't figure out how to use a Trap Extractor 2916 | -9/Mines | Discovered new exit (range 13) 2938 | -9/Mines | Entered Materials 2939 | -8/Materials | Core integrity fell below 50% 2940 | -8/Materials | Reached level 5 2940 | -8/Materials | Upgraded with Utility slot (x1) 3217 | -8/Materials | Reached level 6 3286 | -8/Materials | Discovered new exit (range 16) 3389 | -8/Materials | Build established: Scavenger-Sprinter 3458 | -8/Materials | Reached level 7 3463 | -8/Materials | Upgraded with Utility slot (x1) 3560 | -8/Materials | Discovered new exit (range 16) 3564 | -8/Materials | Identified exit to Factory 3565 | -8/Materials | Entered Factory 3567 | -7/Factory | Reached level 8 3685 | -7/Factory | Reached level 9 3690 | -7/Factory | Upgraded with Weapon slot (x1) 3891 | -7/Factory | Discovered new exit (range 15) 3895 | -7/Factory | Identified exit to Factory 3902 | -7/Factory | Identified exit to Lower Caves 3907 | -7/Factory | Reached level 10 3965 | -7/Factory | First assault squad dispatched 4036 | -7/Factory | Build established: Hacker-Sprinter 4116 | -7/Factory | Fabricated Imp. Hacking Suite (x1) 4201 | -7/Factory | Central database locked down 4229 | -7/Factory | Core integrity fell below 50% 4248 | -7/Factory | Reached level 11 4251 | -7/Factory | Upgraded with Utility slot (x1) 4267 | -7/Factory | Local fabrication network quarantined 4390 | -7/Factory | Discovered exit to Factory (range 15) 4390 | -7/Factory | Manually triggered Chute Trap 4390 | -7/Factory | Sucked down chute 4390 | -7/Factory | Entered Waste 4390 | -7/Waste | The area was eerily silent 4406 | -7/Waste | Discovered new exit (range 16) 4497 | -7/Waste | Identified exit to Factory 4505 | -7/Waste | Entered Factory 4587 | -7/Factory | Discovered exit to Lower Caves (range 10) 4637 | -7/Factory | Reached level 12 4658 | -7/Factory | Destroyed 7 combat bots 4843 | -7/Factory | Fabricated Exp. Signal Interpreter (x1) 4848 | -7/Factory | Discovered exit to Factory (range 2) 4921 | -7/Factory | Reached level 13 4990 | -7/Factory | Repaired Broken Lance 5056 | -7/Factory | Discovered exit to Factory (range 15) 5196 | -7/Factory | Reached level 14 5196 | -7/Factory | Garrison activated, responded to threat 5198 | -7/Factory | Upgraded with Utility slot (x1) 5305 | -7/Factory | First assault squad dispatched 5383 | -7/Factory | Fabricated Imp. Hacking Suite? 5535 | -7/Factory | Fabricated Imp. Hacking Suite (x1) 5581 | -7/Factory | Entered Lower Caves 5581 | -7/Lower Caves | Accompanied by 2 allies 5583 | -7/Lower Caves | Reached level 15 5584 | -7/Lower Caves | Upgraded with Weapon slot (x1) 5593 | -7/Lower Caves | Attracted the attention of an 0b10 outpost 5671 | -7/Lower Caves | Identified exit to Lower Caves 5673 | -7/Lower Caves | Attracted the attention of an 0b10 checkpoint 5746 | -7/Lower Caves | Build established: Wizard-Sprinter 5768 | -7/Lower Caves | Encountered a Warlord checkpoint 5782 | -7/Lower Caves | Learned Factory terminal intel 5813 | -7/Lower Caves | Entered another Lower Caves area 5813 | -7/Lower Caves | Accompanied by 1 ally 5944 | -7/Lower Caves | Discovered new exit (range 15) 5948 | -7/Lower Caves | Identified exit to Zion 5948 | -7/Lower Caves | Entered Zion 5950 | -7/Zion | Reached level 16 5951 | -7/Zion | Upgraded with Utility slot (x1) 5965 | -7/Zion | System corruption cleaned by Quarantine Array 5978 | -7/Zion | Discovered new exit (range 12) 6045 | -7/Zion | Learned location of Warlord (-5) 6153 | -7/Zion | Attacked by Zionites 6182 | -7/Zion | Destroyed Imprinter 6183 | -7/Zion | Extracted access codes from Imprinter's data core 6311 | -7/Zion | Discovered new exit (range 4) 6314 | -7/Zion | Saw the warning signs outside the Deep Caves entrance 6314 | -7/Zion | Identified exit to Deep Caves 6759 | -7/Zion | Entered Deep Caves 6802 | -7/Deep Caves | Z-Facility disabled 6969 | -7/Deep Caves | Spotted as-54374 7011 | -7/Deep Caves | Destroyed as-54374 7191 | -7/Deep Caves | Discovered new exit (range 6) 7193 | -7/Deep Caves | Identified exit to Proximity Caves 7193 | -7/Deep Caves | Entered Proximity Caves 7195 | -6/Proximity Caves | Reached level 17 7196 | -6/Proximity Caves | Upgraded with Power slot (x1) 7228 | -6/Proximity Caves | Spotted B-75 Beast 7252 | -6/Proximity Caves | Destroyed B-75 Beast 7260 | -6/Proximity Caves | Learned Factory garrison access intel 7304 | -6/Proximity Caves | Learned 4 Factory zone layouts 7396 | -6/Proximity Caves | Discovered exit to Factory (range 10) 7461 | -6/Proximity Caves | Attracted the attention of an 0b10 checkpoint 7466 | -6/Proximity Caves | Attracted the attention of an 0b10 outpost 7484 | -6/Proximity Caves | Received a Behemoth hack from an annoying Tinkerer 7497 | -6/Proximity Caves | Entered Factory 7499 | -6/Factory | Loaded intel: 20 terminal locations 7499 | -6/Factory | Reached level 18 7500 | -6/Factory | Loaded intel: 4 garrison access locations 7517 | -6/Factory | Identified exit to Lower Caves 7535 | -6/Factory | Core integrity fell below 50% 7847 | -6/Factory | First assault squad dispatched 7848 | -6/Factory | Imp. Hacking Suite fried by hacking feedback 7909 | -6/Factory | Discovered new exit (range 5) 8016 | -6/Factory | Fabricated Adv. Hacking Suite (x1) 8040 | -6/Factory | Reached level 19 8087 | -6/Factory | Upgraded with Utility slot (x1) 8103 | -6/Factory | Fabricated Adv. Hacking Suite (x1) 8158 | -6/Factory | Fabricated Adv. Hacking Suite (x1) 8213 | -6/Factory | Fabricated Adv. Hacking Suite (x1) 8268 | -6/Factory | Fabricated Adv. Hacking Suite (x1) 8556 | -6/Factory | Fabricated Adv. Hacking Suite (x1) 8596 | -6/Factory | Local fabrication network quarantined 8651 | -6/Factory | Manually triggered Chute Trap 8651 | -6/Factory | Sucked down chute 8651 | -6/Factory | Entered Waste 8654 | -6/Waste | Spotted C-40 Crusher 8655 | -6/Waste | 1 allies followed down the chute 8666 | -6/Waste | Destroyed C-40 Crusher 8675 | -6/Waste | Spotted C-40 Crusher 8690 | -6/Waste | Destroyed C-40 Crusher 8701 | -6/Waste | Spotted C-40 Crusher 8703 | -6/Waste | Spotted C-40 Crusher 8703 | -6/Waste | Spotted C-40 Crusher 8708 | -6/Waste | Destroyed C-40 Crusher 8725 | -6/Waste | Destroyed C-40 Crusher 8725 | -6/Waste | Destroyed C-40 Crusher 8734 | -6/Waste | Spotted C-40 Crusher 8751 | -6/Waste | Destroyed C-40 Crusher 8759 | -6/Waste | Discovered new exit (range 10) 8762 | -6/Waste | Identified exit to Factory 8815 | -6/Waste | Entered Factory 8815 | -6/Factory | Accompanied by 1 ally 9074 | -6/Factory | Discovered new exit (range 7) 9506 | -6/Factory | Spotted B-75 Beast 9794 | -6/Factory | Garrison activated, responded to threat 9865 | -6/Factory | First assault squad dispatched 9918 | -6/Factory | Reached level 20 10058 | -6/Factory | Fabricated Q-thruster (x2) 10081 | -6/Factory | Fabricated Q-thruster (x2) 10223 | -6/Factory | Fabricated Mni. Fusion Reactor (x1) 10422 | -6/Factory | Fabricated Mni. Fusion Reactor (x1) 10514 | -6/Factory | Local fabrication network quarantined 10583 | -6/Factory | Entered Lower Caves 10583 | -6/Lower Caves | Accompanied by 1 ally 10744 | -6/Lower Caves | Encountered a Warlord checkpoint 10745 | -6/Lower Caves | Discovered new exit (range 7) 10747 | -6/Lower Caves | Identified exit to Lower Caves 10759 | -6/Lower Caves | Entered another Lower Caves area 10759 | -6/Lower Caves | Accompanied by 1 ally 10772 | -6/Lower Caves | Learned 8 Factory zone layouts 10772 | -6/Lower Caves | Learned Armory trap positions 10807 | -6/Lower Caves | Discovered new exit (range 14) 10816 | -6/Lower Caves | Identified exit to Data Miner 10826 | -6/Lower Caves | Entered Data Miner 10826 | -6/Data Miner | Accompanied by 1 ally 10826 | -6/Data Miner | Discovered new exit (range 7) 10832 | -6/Data Miner | Met Data Miner 10838 | -6/Data Miner | Learned location of Section 7 (-2) 10838 | -6/Data Miner | Acquired the access code to Warlord's prototype stash 10843 | -6/Data Miner | Received God Mode back door access code from Data Miner 10864 | -6/Data Miner | Data Conduit disabled 10900 | -6/Data Miner | Identified exit to Proximity Caves 10900 | -6/Data Miner | Entered Proximity Caves 10943 | -5/Proximity Caves | Reached level 21 10953 | -5/Proximity Caves | Upgraded with Utility slot (x1) 10976 | -5/Proximity Caves | Discovered new exit (range 3) 10977 | -5/Proximity Caves | Identified exit to Factory 10977 | -5/Proximity Caves | Entered Factory 10978 | -5/Factory | Identified exit to Extension 11110 | -5/Factory | Garrison activated, responded to threat 11173 | -5/Factory | Fabricated Adv. Armor Integrity Analyzer (x1) 11251 | -5/Factory | Fabricated Exp. Targeting Computer (x1) 11285 | -5/Factory | Local fabrication network quarantined 11329 | -5/Factory | Fabricated Exp. Targeting Computer (x1) 11370 | -5/Factory | Garrison activated, responded to threat 11380 | -5/Factory | Manually triggered Chute Trap 11380 | -5/Factory | Sucked down chute 11380 | -5/Factory | Entered Waste 11393 | -5/Waste | Spotted C-40 Crusher 11404 | -5/Waste | Spotted C-40 Crusher 11404 | -5/Waste | Spotted C-40 Crusher 11404 | -5/Waste | Spotted C-40 Crusher 11404 | -5/Waste | Destroyed C-40 Crusher 11404 | -5/Waste | Destroyed C-40 Crusher 11409 | -5/Waste | Destroyed C-40 Crusher 11414 | -5/Waste | Spotted C-40 Crusher 11414 | -5/Waste | Spotted C-40 Crusher 11415 | -5/Waste | Destroyed C-40 Crusher 11429 | -5/Waste | Destroyed C-40 Crusher 11444 | -5/Waste | Discovered new exit (range 13) 11462 | -5/Waste | Warlord forces began an assault 11479 | -5/Waste | Destroyed C-40 Crusher 11531 | -5/Waste | Identified exit to Factory 11532 | -5/Waste | Entered Factory 11567 | -5/Factory | Identified exit to Upper Caves 11659 | -5/Factory | Reached level 22 11805 | -5/Factory | Discovered new exit (range 5) 11806 | -5/Factory | Identified exit to Factory 11832 | -5/Factory | First assault squad dispatched 11996 | -5/Factory | Discovered exit to Factory (range 7) 12117 | -5/Factory | Destroyed 9 combat bots 12337 | -5/Factory | Fabricated Hyp. Railgun (x2) 12434 | -5/Factory | Fabricated Exp. Hacking Suite (x1) 12529 | -5/Factory | Fabricated Exp. Hacking Suite (x1) 12633 | -5/Factory | Local fabrication network quarantined 12720 | -5/Factory | Fabricated Exp. Hacking Suite (x1) 12756 | -5/Factory | Entered Extension 12756 | -5/Extension | Accompanied by 1 ally 12758 | -5/Extension | Reached level 23 12888 | -5/Extension | Rescued a captive Derelict 12888 | -5/Extension | Rescued a captive Derelict 12895 | -5/Extension | Rescued a captive Derelict 12896 | -5/Extension | Rescued a captive Derelict 12904 | -5/Extension | Spotted B-75 Beast 12915 | -5/Extension | Spotted B-75 Beast 12927 | -5/Extension | Destroyed B-75 Beast 12933 | -5/Extension | Allies destroyed B-75 Beast 13004 | -5/Extension | Rescued A7 13007 | -5/Extension | Energy Cycler disabled 13012 | -5/Extension | Identified exit to Cetus 13142 | -5/Extension | Discovered exit to Factory (range 10) 13230 | -5/Extension | Entered Cetus 13230 | -5/Cetus | Accompanied by 10 allies 13235 | -5/Cetus | Acquired a Cetus Manufacturing Module code from A7 13246 | -5/Cetus | Destroyed Cetus Guard 13248 | -5/Cetus | Destroyed Cetus Guard 13251 | -5/Cetus | Destroyed Cetus Guard 13305 | -5/Cetus | Started Cetus Manufacturing Module 13330 | -5/Cetus | Manufactured an Enhanced Grunt 13330 | -5/Cetus | Discovered new exit (range 15) 13355 | -5/Cetus | Manufactured an Enhanced Grunt 13380 | -5/Cetus | Manufactured an Enhanced Grunt 13405 | -5/Cetus | Manufactured an Enhanced Grunt 13430 | -5/Cetus | Manufactured an Enhanced Grunt 13514 | -5/Cetus | Destroyed A7 13517 | -5/Cetus | Extracted ID and sensor layout for unrecognized location from A7's data core 13527 | -5/Cetus | Reached level 24 13531 | -5/Cetus | Upgraded with Utility slot (x1) 13531 | -5/Cetus | Found Med. Regenerative Plating 13544 | -5/Cetus | Identified exit to Archives 13558 | -5/Cetus | Entered Archives 13558 | -5/Archives | Accompanied by 7 allies 13586 | -5/Archives | Discovered new exit (range 16) 13594 | -5/Archives | Discovered new exit (range 14) 13597 | -5/Archives | Identified exit to Hub_04(d) 13614 | -5/Archives | Entered Hub_04(d) 13614 | -5/Hub_04(d) | Accompanied by 6 allies 13863 | -5/Hub_04(d) | Disrupted transfer network 13926 | -5/Hub_04(d) | Garrison activated, responded to threat 13964 | -5/Hub_04(d) | Destroyed 9 combat bots 13977 | -5/Hub_04(d) | Network Hub disabled 13985 | -5/Hub_04(d) | Network Hub disabled 13997 | -5/Hub_04(d) | Destroyed Lightning 13999 | -5/Hub_04(d) | Core integrity fell below 50% 13999 | -5/Hub_04(d) | Destroyed Lightning 14012 | -5/Hub_04(d) | Network Hub disabled 14013 | -5/Hub_04(d) | System corruption reached 10% 14026 | -5/Hub_04(d) | Spotted Lightning 14026 | -5/Hub_04(d) | Spotted Lightning 14026 | -5/Hub_04(d) | Spotted Lightning 14026 | -5/Hub_04(d) | Spotted Lightning 14026 | -5/Hub_04(d) | Spotted Lightning 14072 | -5/Hub_04(d) | Network Hub disabled 14073 | -5/Hub_04(d) | Core integrity fell below 20% 14083 | -5/Hub_04(d) | Entered Factory 14084 | -4/Factory | Identified exit to Research 14084 | -4/Factory | Core integrity fell below 50% 14084 | -4/Factory | Core integrity fell below 20% 14085 | -4/Factory | Reached level 25 14379 | -4/Factory | Local fabrication network quarantined 14410 | -4/Factory | Fabricated Exp. System Shield? 14476 | -4/Factory | Identified exit to Upper Caves 14476 | -4/Factory | Identified exit to Armory 14588 | -4/Factory | Entered Armory 14588 | -4/Armory | Accompanied by 2 allies 14589 | -4/Armory | Loaded intel: 30 trap records 14590 | -4/Armory | Reached level 26 14748 | -4/Armory | Fabricated Exp. Target Analyzer (x1) 14843 | -4/Armory | Fabricated Exp. Cooling System (x1) 14880 | -4/Armory | Fabricated Adv. Reaction Control System (x1) 14922 | -4/Armory | Fabricated Tesla Bomb Launcher? 15008 | -4/Armory | Spotted B-86 Titan 15031 | -4/Armory | Destroyed B-86 Titan 15086 | -4/Armory | Fabricated Exp. Matter Compressor (x1) 15142 | -4/Armory | Fabricated Exp. Power Amplifier (x1) 15142 | -4/Armory | Build established: Machinist-Sprinter 15358 | -4/Armory | Discovered new exit (range 4) 15361 | -4/Armory | Identified exit to Lab 15368 | -4/Armory | Entered Lab 15368 | -4/Lab | Accompanied by 2 allies 15368 | -4/Lab | Discovered exit to Research (range 9) 15370 | -4/Lab | Reached level 27 15373 | -4/Lab | Hidden lab's door opened automatically 15373 | -4/Lab | Sensor layout match revealed 15373 | -4/Lab | Upgraded with Utility slot (x1) 15374 | -4/Lab | Gained access to the hidden lab's interior 15393 | -4/Lab | Found Alien Artifact 15393 | -4/Lab | Identified Core Regenerator 15393 | -4/Lab | Used Core Regenerator, restored core integrity (+0) 15400 | -4/Lab | Found Alien Artifact 15400 | -4/Lab | Identified Integrated Reactor 15400 | -4/Lab | Installed Integrated Reactor, increased core energy generation (+2%) 15409 | -4/Lab | Found Prototype Hackware 15409 | -4/Lab | Identified Deep Network Scanner 15414 | -4/Lab | Found Prototype Device 15416 | -4/Lab | Found Prototype Energy Gun 15416 | -4/Lab | Identified Tachyon Dispersion Ray 15424 | -4/Lab | Unable to decrypt terminal 15428 | -4/Lab | Found Prototype Special Weapon 15428 | -4/Lab | Identified Gui. Remote Datajack 15460 | -4/Lab | Entered Research 15460 | -3/Research | Accompanied by 2 allies 15464 | -3/Research | Identified exit to Testing 15501 | -3/Research | Spotted B-86 Titan 15601 | -3/Research | Reached level 28 15661 | -3/Research | Build established: Wizard-Sprinter 15883 | -3/Research | Fabricated Exp. Armor Integrity Analyzer (x1) 15938 | -3/Research | Fabricated Cld. Q-thruster (x1) 15955 | -3/Research | Local fabrication network quarantined 16077 | -3/Research | Entered Testing 16082 | -3/Testing | Identified AEGIS Remote Shield 16101 | -3/Testing | Spotted PX-P4U42BLYGV 16103 | -3/Testing | Destroyed PX-P4U42BLYGV 16108 | -3/Testing | Found Prototype Device 16108 | -3/Testing | Identified Exp. Transmission Jammer 16110 | -3/Testing | Found Prototype Device 16110 | -3/Testing | Identified Exp. Thermal Shield 16112 | -3/Testing | Found Prototype Processor 16112 | -3/Testing | Identified Spectral Analyzer 16225 | -3/Testing | Identified exit to Research 16254 | -3/Testing | Spotted Striker 16318 | -3/Testing | Found Prototype Energy Gun 16318 | -3/Testing | Identified Hyp. EM Gauss Rifle 16449 | -3/Testing | Fabricated Cld. Q-thruster (x1) 16506 | -3/Testing | Fabricated Cld. Q-thruster? 16696 | -3/Testing | Fabricated Cld. Q-thruster (x1) 16772 | -3/Testing | Local fabrication network quarantined 16883 | -3/Testing | Reached level 29 16931 | -3/Testing | Found Prototype Hackware 16931 | -3/Testing | Identified System Mapper 16936 | -3/Testing | Destroyed 8 combat bots 17035 | -3/Testing | Spotted Striker 17072 | -3/Testing | Spotted PP-2TZNSFWHKJ 17076 | -3/Testing | Destroyed PP-2TZNSFWHKJ 17081 | -3/Testing | Found Zero-point Reactor 17083 | -3/Testing | Found Zero-point Reactor 17120 | -3/Testing | Entered Research 17120 | -2/Research | Accompanied by 3 allies 17122 | -2/Research | Reached level 30 17125 | -2/Research | Upgraded with Utility slot (x1) 17166 | -2/Research | Identified exit to Quarantine 17190 | -2/Research | Destroyed 8 combat bots 17281 | -2/Research | Destroyed 12 combat bots 17299 | -2/Research | Spotted B-90 Cyclops 17312 | -2/Research | Reached level 31 17366 | -2/Research | Destroyed B-90 Cyclops 17415 | -2/Research | Spotted B-90 Cyclops 17427 | -2/Research | Destroyed B-90 Cyclops 17442 | -2/Research | Entered Quarantine 17442 | -2/Quarantine | Accompanied by 2 allies 17481 | -2/Quarantine | Cryocooling Duct disabled 17496 | -2/Quarantine | Ambient heat levels rising (+20) 17496 | -2/Quarantine | Non-combat units ordered to evacuate 17575 | -2/Quarantine | Found Alien Artifact 17606 | -2/Quarantine | Spotted Alpha 7 17625 | -2/Quarantine | Discovered new exit (range 14) 17633 | -2/Quarantine | Identified Subatomic Replicator 17676 | -2/Quarantine | Destroyed Alpha 7 17884 | -2/Quarantine | Reached level 32 17945 | -2/Quarantine | Met incapacitated Sigix Warrior 17945 | -2/Quarantine | Lockdown squad dispatched 17947 | -2/Quarantine | Acquired the access code to the Sigix quarantine chamber 17947 | -2/Quarantine | Unlocked Sigix quarantine chamber 17984 | -2/Quarantine | Destroyed Lightning 17987 | -2/Quarantine | Destroyed Lightning 17995 | -2/Quarantine | Destroyed Lightning 18002 | -2/Quarantine | Found Prototype Device 18002 | -2/Quarantine | Identified EM Dispersion Field 18008 | -2/Quarantine | Found Exp. Phase Shifter 18022 | -2/Quarantine | Found Exp. Targeting Computer 18052 | -2/Quarantine | Found Alien Launcher 18068 | -2/Quarantine | Identified Sigix Terminator 18101 | -2/Quarantine | Spotted Fortress 18191 | -2/Quarantine | Destroyed Fortress 18206 | -2/Quarantine | Found Prototype Device 18206 | -2/Quarantine | Identified Thermal Barrier 18243 | -2/Quarantine | Discovered new exit (range 7) 18244 | -2/Quarantine | Identified exit to Section 7 18244 | -2/Quarantine | Entered Section 7 18346 | -2/Section 7 | Identified exit to Access 18358 | -2/Section 7 | Found Integrated Reactor 18358 | -2/Section 7 | Installed Integrated Reactor, increased core energy generation (+2%) 18410 | -2/Section 7 | Found Alien Artifact 18458 | -2/Section 7 | Identified Core Reset Matrix 18514 | -2/Section 7 | Destroyed 8 combat bots 18530 | -2/Section 7 | Found Alien Artifact 18540 | -2/Section 7 | Identified Integrity Redistributor 18544 | -2/Section 7 | Reached level 33 18598 | -2/Section 7 | Scanned by Researcher 18599 | -2/Section 7 | Intercept squad dispatched 18606 | -2/Section 7 | Spotted Tracker 18606 | -2/Section 7 | Spotted Tracker 18609 | -2/Section 7 | Destroyed Tracker 18620 | -2/Section 7 | Destroyed Tracker 18623 | -2/Section 7 | Spotted Combat Programmer 18633 | -2/Section 7 | Spotted Combat Programmer 18639 | -2/Section 7 | Destroyed Combat Programmer 18644 | -2/Section 7 | Core integrity fell below 50% 18663 | -2/Section 7 | Destroyed Combat Programmer 18684 | -2/Section 7 | Destroyed 9 combat bots 18715 | -2/Section 7 | Spotted S7 Guard 18716 | -2/Section 7 | Spotted S7 Guard 18754 | -2/Section 7 | Destroyed S7 Guard 18821 | -2/Section 7 | Destroyed 11 combat bots 18835 | -2/Section 7 | Found Alien Artifact 18876 | -2/Section 7 | Identified Integrated Heat Negator 18877 | -2/Section 7 | Used Subatomic Replicator to replicate Integrated Heat Negator 18878 | -2/Section 7 | Installed Integrated Heat Negator, increased core heat dissipation (+2%) 18880 | -2/Section 7 | Installed Integrated Heat Negator, increased core heat dissipation (+2%) 18900 | -2/Section 7 | Found Exp. Targeting Computer 18904 | -2/Section 7 | Found Exp. Phase Shifter 18972 | -2/Section 7 | Intercept squad dispatched 18978 | -2/Section 7 | Spotted Tracker 18978 | -2/Section 7 | Spotted Tracker 18978 | -2/Section 7 | Spotted Tracker 18978 | -2/Section 7 | Destroyed Tracker 18981 | -2/Section 7 | Destroyed Tracker 18984 | -2/Section 7 | Destroyed Tracker 19005 | -2/Section 7 | Spotted Combat Programmer 19006 | -2/Section 7 | Spotted Combat Programmer 19018 | -2/Section 7 | System corruption reached 10% 19022 | -2/Section 7 | Destroyed Combat Programmer 19047 | -2/Section 7 | Spotted Executioner 19047 | -2/Section 7 | Spotted Executioner 19053 | -2/Section 7 | Destroyed Executioner 19056 | -2/Section 7 | Destroyed Executioner 19086 | -2/Section 7 | Found Alien Artifact 19114 | -2/Section 7 | Spotted B-99 Colossus 19129 | -2/Section 7 | Found Alien Artifact 19129 | -2/Section 7 | Identified LRC Boosters 19129 | -2/Section 7 | Installed LRC Boosters, increased mass support (+10) 19131 | -2/Section 7 | Found LRC Boosters 19131 | -2/Section 7 | Installed LRC Boosters, increased mass support (+10) 19161 | -2/Section 7 | Found Alien Artifact 19161 | -2/Section 7 | Identified Core Expander 19161 | -2/Section 7 | Installed Core Expander, added new Power slot 19171 | -2/Section 7 | Intercept squad dispatched 19179 | -2/Section 7 | Spotted Tracker 19179 | -2/Section 7 | Destroyed Tracker 19180 | -2/Section 7 | Spotted Tracker 19182 | -2/Section 7 | Destroyed Tracker 19182 | -2/Section 7 | Spotted Tracker 19187 | -2/Section 7 | Destroyed Tracker 19188 | -2/Section 7 | Spotted Tracker 19193 | -2/Section 7 | Destroyed Tracker 19221 | -2/Section 7 | Spotted Combat Programmer 19236 | -2/Section 7 | Spotted Combat Programmer 19237 | -2/Section 7 | Spotted Combat Programmer 19242 | -2/Section 7 | Spotted Combat Programmer 19253 | -2/Section 7 | Destroyed Combat Programmer 19253 | -2/Section 7 | Destroyed Combat Programmer 19263 | -2/Section 7 | Destroyed Combat Programmer 19274 | -2/Section 7 | Destroyed Combat Programmer 19357 | -2/Section 7 | Destroyed B-99 Colossus 19379 | -2/Section 7 | Destroyed Combat Programmer 19463 | -2/Section 7 | Intercept squad dispatched 19464 | -2/Section 7 | Spotted Tracker 19464 | -2/Section 7 | Spotted Tracker 19471 | -2/Section 7 | Destroyed Tracker 19472 | -2/Section 7 | Spotted Tracker 19474 | -2/Section 7 | Destroyed Tracker 19474 | -2/Section 7 | Spotted Tracker 19476 | -2/Section 7 | Destroyed Tracker 19479 | -2/Section 7 | Reached level 34 19479 | -2/Section 7 | Destroyed Tracker 19488 | -2/Section 7 | Spotted Combat Programmer 19490 | -2/Section 7 | Spotted Combat Programmer 19498 | -2/Section 7 | Core integrity fell below 20% 19508 | -2/Section 7 | Spotted Combat Programmer 19508 | -2/Section 7 | Spotted Combat Programmer 19508 | -2/Section 7 | Spotted Combat Programmer 19513 | -2/Section 7 | Spotted Tracker 19528 | -2/Section 7 | Destroyed Tracker 19536 | -2/Section 7 | Spotted B-90 Cyclops 19538 | -2/Section 7 | Destroyed Combat Programmer 19545 | -2/Section 7 | Spotted B-90 Cyclops 19547 | -2/Section 7 | Entered Access 19548 | -1/Access | Core integrity fell below 50% 19548 | -1/Access | Core integrity fell below 20% 19750 | -1/Access | Intercept squad dispatched 19752 | -1/Access | Spotted Tracker 19753 | -1/Access | Destroyed Tracker 19753 | -1/Access | Spotted Tracker 19761 | -1/Access | Destroyed Tracker 19772 | -1/Access | Found Exp. Phase Shifter 19808 | -1/Access | Spotted Combat Programmer 19812 | -1/Access | Spotted Combat Programmer 19831 | -1/Access | Destroyed Combat Programmer 19845 | -1/Access | Reached level 35 19845 | -1/Access | Destroyed Combat Programmer 19858 | -1/Access | Fabricated Exp. Weapon Cycler? 19901 | -1/Access | Destroyed 9 combat bots 19984 | -1/Access | Fabricated Exp. Force Field (x1) 20045 | -1/Access | Fabricated Zero-point Reactor (x1) 20101 | -1/Access | Fabricated Exp. Energy Well (x1) 20141 | -1/Access | Local fabrication network quarantined 20148 | -1/Access | Identified exit to Command 20219 | -1/Access | Destroyed 7 combat bots 20249 | -1/Access | Intercept squad dispatched 20273 | -1/Access | Spotted Tracker 20273 | -1/Access | Destroyed Tracker 20274 | -1/Access | Spotted Tracker 20274 | -1/Access | Spotted Tracker 20277 | -1/Access | Destroyed Tracker 20277 | -1/Access | Destroyed Tracker 20297 | -1/Access | First assault squad dispatched 20309 | -1/Access | Intercept squad dispatched 20333 | -1/Access | Spotted Tracker 20333 | -1/Access | Spotted Tracker 20334 | -1/Access | Spotted Tracker 20334 | -1/Access | Spotted Tracker 20339 | -1/Access | Destroyed Tracker 20339 | -1/Access | Destroyed Tracker 20341 | -1/Access | Destroyed Tracker 20341 | -1/Access | Destroyed Tracker 20354 | -1/Access | Spotted Combat Programmer 20364 | -1/Access | Spotted Combat Programmer 20377 | -1/Access | Destroyed Combat Programmer 20379 | -1/Access | Spotted Combat Programmer 20382 | -1/Access | Destroyed Combat Programmer 20398 | -1/Access | System corruption reached 10% 20400 | -1/Access | Destroyed Combat Programmer 20405 | -1/Access | Spotted Combat Programmer 20406 | -1/Access | Spotted Combat Programmer 20425 | -1/Access | Destroyed Combat Programmer 20432 | -1/Access | Destroyed Combat Programmer 20440 | -1/Access | Spotted Combat Programmer 20441 | -1/Access | Spotted Combat Programmer 20449 | -1/Access | Destroyed Combat Programmer 20458 | -1/Access | Destroyed Combat Programmer 20506 | -1/Access | Reached level 36 20511 | -1/Access | High security lockdown imminent 20513 | -1/Access | Upgraded with Utility slot (x1) 20551 | -1/Access | Destroyed 9 combat bots 20591 | -1/Access | High security lockdown engaged 20621 | -1/Access | Entered Command 20703 | -1/Command | Destroyed 8 combat bots 20720 | -1/Command | Build established: Machinist-Sprinter 20755 | -1/Command | Destroyed 7 combat bots 20829 | -1/Command | Discovered new exit (range 20) 20839 | -1/Command | Phase Generator disabled 20872 | -1/Command | Reached level 37 20907 | -1/Command | Disengaged cave seal 20925 | -1/Command | High security lockdown imminent 21005 | -1/Command | High security lockdown engaged 21021 | -1/Command | Destroyed 75 combat bots 21078 | -1/Command | Fired Sigix Terminator 21078 | -1/Command | Reached level 38 21078 | -1/Command | MAIN.C activated Command garrisons 21149 | -1/Command | Spotted Striker 21150 | -1/Command | Spotted Striker 21154 | -1/Command | Destroyed Striker 21156 | -1/Command | Destroyed Striker 21168 | -1/Command | Spotted Executioner 21168 | -1/Command | Destroyed Executioner 21177 | -1/Command | Build established: Machinist-Scout 21179 | -1/Command | Spotted Striker 21181 | -1/Command | Spotted Executioner 21185 | -1/Command | Destroyed Striker 21189 | -1/Command | Reached level 39 21189 | -1/Command | Destroyed Executioner 21213 | -1/Command | Destroyed 188 combat bots 21263 | -1/Command | Destroyed 7 combat bots 21327 | -1/Command | Destroyed 12 combat bots 21346 | -1/Command | Spotted Executioner 21392 | -1/Command | Destroyed Executioner 21640 | -1/Command | Destroyed 73 combat bots 21683 | -1/Command | Destroyed Executioner 21685 | -1/Command | Spotted B-99 Colossus 21690 | -1/Command | Destroyed Executioner 21695 | -1/Command | Destroyed Striker 21696 | -1/Command | Spotted Alpha 7 21700 | -1/Command | Spotted Striker 21705 | -1/Command | Spotted B-99 Colossus 21705 | -1/Command | Destroyed Striker 21708 | -1/Command | Spotted Alpha 7 21807 | -1/Command | Destroyed 19 combat bots 21845 | -1/Command | Crushed by falling debris 21845 | -1/Command | Destroyed B-99 Colossus 21883 | -1/Command | Destroyed Alpha 7 21888 | -1/Command | Destroyed Alpha 7 21892 | -1/Command | Spotted Executioner 21893 | -1/Command | Destroyed B-99 Colossus 21896 | -1/Command | Destroyed Executioner 21946 | -1/Command | Found Exp. Core Analyzer 22288 | -1/Command | Build established: Machinist-Gunner 24701 | -1/Command | Spotted M Guard 24701 | -1/Command | Spotted M Guard 24707 | -1/Command | Spotted Combat Programmer 24707 | -1/Command | Spotted Combat Programmer 24754 | -1/Command | Destroyed Combat Programmer 24761 | -1/Command | Destroyed Combat Programmer 24862 | -1/Command | Destroyed M Guard 24898 | -1/Command | Destroyed M Guard 24898 | -1/Command | Destroyed all MAIN.C guards 25472 | -1/Command | Build established: Machinist-Mutant 26627 | -1/Command | Met MAIN.C 26645 | -1/Command | 0b10 Conduit disabled 26692 | -1/Command | Destroyed MAIN.C Shell 26863 | -1/Command | Build established: Machinist-Scout 26899 | -1/Command | Destroyed MAIN.C 27156 | -1/Command | Discovered new exit (range 21) 27186 | -1/Command | Identified Transdimensional Reconstructor 27186 | -1/Command | Warped through subspace to slip node 27186 | -1/Command | Discovered new exit (range 5) 27192 | -1/Command | Identified exit to Access_0 27197 | -1/Command | Entered Access_0 27199 | -1/Access_0 | Reached level 40 27200 | -1/Access_0 | Met Architect 27201 | -1/Access_0 | Architect warped through subspace 27224 | -1/Access_0 | Destroyed A8 27253 | -1/Access_0 | Architect warped through subspace 27288 | -1/Access_0 | Architect warped through subspace 27298 | -1/Access_0 | A6 warped into view 27335 | -1/Access_0 | Architect warped through subspace 27365 | -1/Access_0 | Architect warped through subspace 27383 | -1/Access_0 | Subspace Access Node disabled 27392 | -1/Access_0 | Architect warped through subspace 27424 | -1/Access_0 | Architect warped through subspace 27469 | -1/Access_0 | A5 warped into view 27515 | -1/Access_0 | Architect warped through subspace 27543 | -1/Access_0 | Architect warped through subspace 27547 | -1/Access_0 | Crushed by falling debris 27566 | -1/Access_0 | Architect warped through subspace 27598 | -1/Access_0 | Architect warped through subspace 27606 | -1/Access_0 | Found Prototype Device 27606 | -1/Access_0 | Identified Desublimator 27630 | -1/Access_0 | Architect warped through subspace 27639 | -1/Access_0 | Found Exp. Targeting Computer 27641 | -1/Access_0 | Subspace Access Node disabled 27663 | -1/Access_0 | Architect warped through subspace 27697 | -1/Access_0 | Architect warped through subspace 27734 | -1/Access_0 | Architect warped through subspace 27752 | -1/Access_0 | Architect warped through subspace 27764 | -1/Access_0 | Subspace Access Node disabled 27788 | -1/Access_0 | Architect warped through subspace 27820 | -1/Access_0 | Architect warped through subspace 27862 | -1/Access_0 | Architect warped through subspace 27865 | -1/Access_0 | Found Exp. Targeting Computer 27885 | -1/Access_0 | A4 warped into view 27911 | -1/Access_0 | Architect warped through subspace 27924 | -1/Access_0 | Destroyed A4 27975 | -1/Access_0 | Architect warped through subspace 27980 | -1/Access_0 | Subspace Access Node disabled 28050 | -1/Access_0 | Destroyed 7 combat bots 28150 | -1/Access_0 | Found Sigix Corpse 28197 | -1/Access_0 | Destroyed A2 28200 | -1/Access_0 | Extracted Singularity Gate Test 138-C access codes from A2's data core 28201 | -1/Access_0 | Found Prototype Hackware 28201 | -1/Access_0 | Identified Quantum Router 28206 | -1/Access_0 | Found Prototype Device 28206 | -1/Access_0 | Identified Exp. Thermal Defense Suite 28271 | -1/Access_0 | A3 warped into view 28312 | -1/Access_0 | Destroyed A3 28356 | -1/Access_0 | Started Test 138-B, establishing a local singularity 28357 | -1/Access_0 | Singularity Gate disabled 28698 | -1/Access_0 | Destroyed Architect 28701 | -1/Access_0 | Extracted unknown sensor trigger ID from Architect's data core 28702 | -1/Access_0 | Found Prototype Hackware 28702 | -1/Access_0 | Identified Architect God Chip D 28705 | -1/Access_0 | Found Prototype Hackware 28705 | -1/Access_0 | Identified Architect God Chip A 28708 | -1/Access_0 | Found Alien Artifact 28721 | -1/Access_0 | Identified Hpw. Transdimensional Reconstructor 28721 | -1/Access_0 | Warped through subspace to slip node 28721 | -1/Access_0 | Discovered new exit (range 8) 28725 | -1/Access_0 | Identified exit to Surface 28727 | *** | Establishing 0b11! Last Messages --------------- 28676_ Destroyed Zero-point Reactor. 28698_ Architect: "Defeated by a malfunctioning replica of a piece of alien starship?! You've got*fzzt* be kiddi*bzzz*" 28698_ Architect destroyed. 28701_ Acquired data core, extracted unknown sensor trigger ID. 28701_ Discarded Exp. Targeting Computer. 28702_ Acquired Prototype Hackware. 28702_ Identified Architect God Chip D. 28705_ Discarded Exp. Core Analyzer. 28705_ Acquired Prototype Hackware. 28705_ Identified Architect God Chip A. 28707_ Acquired 5 matter. 28708_ Dropped Exp. Phase Shifter. 28708_ Acquired Alien Artifact. 28720_ The protective shell folds into the floor. 28721_ Connecting with Architect Logs... 28721_ Identified Hpw. Transdimensional Reconstructor. 28721_ Warped through subspace, drawn to slip node. 28721_ EXIT=FOUND 28725_ EXIT=IDENTIFIED: SURFACE Map ----- +----------------------------------------------------+ | | | | | | | | | | | | | | | | | | | | | | | | | | | | | | | | | ?????????????????????????????????????????????????? | | ?????????????????????????????????????????????????? | | ?????????????????????????????????????????????????? | | ?????????????????????????????????????????????????? | | ?????????????????????????????????????????????????? | | ?????????????????????????????????????????????????? | | ????????????????????????###??????????????????????? | | ???????????????????????## ##?????????????????????? | | ???????????????????????# #?????????????????????? | | ???????????????????????# @ #?????????????????????? | | ??????????????????????## #?????????????????????? | | ??????????????????????# #?????????????????????? | | ??????????????????????# ##?????????????????????? | | ??????????????????????## #?????????????????????? | | ??????????????????????# #?????????????????????? | | ??????????????????????# ##?????????????????????? | | ??????????????????????# < #?????????????????????? | | ??????????????????????# ##?????????????????????? | | ??????????????????????## #??????????????????????? | | ???????????????????????####??????????????????????? | | ?????????????????????????????????????????????????? | | ?????????????????????????????????????????????????? | | ?????????????????????????????????????????????????? | | ?????????????????????????????????????????????????? | | ?????????????????????????????????????????????????? | | ?????????????????????????????????????????????????? | | ?????????????????????????????????????????????????? | | ?????????????????????????????????????????????????? | | ?????????????????????????????????????????????????? | | ?????????????????????????????????????????????????? | | ?????????????????????????????????????????????????? | | ?????????????????????????????????????????????????? | | ?????????????????????????????????????????????????? | | ?????????????????????????????????????????????????? | +----------------------------------------------------+ Best States ------------- Heat Dissipation 129 Energy Generation 124 Energy Capacity 1520 Matter Stores 800 Matter Capacity 800 Sight Range 25 Robot Scan Range 24 Terrain Scan Density 10 Armor Coverage 1000 Resistance: KI 20 Resistance: TH 20 Resistance: EX 90 Weapon Cycling 30 Phase Shifting 20 Evasion (%) 99 Targeting Accuracy 60 Target Analysis 12 Core Analysis 15 Armor Integrity Analysis 90 Matter Filtering 50 Salvage Targeting 4 Offensive Hacking 110 Defensive Hacking 105 Item Schematics ----------------- Imp. Hacking Suite | -7/Factory | Hacked Exp. Signal Interpreter | -7/Factory | Hacked Hyp. Coil Gun | -7/Factory | Hacked Reaction Control System | -6/Factory | Hacked Adv. Hacking Suite | -6/Factory | Hacked Mni. Fusion Reactor | -6/Factory | Hacked Hyp. Gauss Rifle | -6/Factory | Hacked Imp. Dynamic Insulation System | -6/Factory | Hacked Adv. Armor Integrity Analyzer | -6/Factory | Hacked Combat Drone Bay | -6/Data Miner | Free Lgt. Regenerative Plating | -6/Data Miner | Free Exp. Sensor Array | -6/Data Miner | Free Exp. Targeting Computer | -6/Data Miner | Free Tactical Coordination Suite | -6/Data Miner | Free Cloaking Device | -6/Data Miner | Free Mni. Smartbomb Launcher | -6/Data Miner | Free Adv. Target Analyzer | -5/Factory | Hacked Adv. Transmission Jammer | -5/Factory | Hacked Hyp. Gauss Cannon | -5/Factory | Hacked Adv. Force Field | -5/Factory | Hacked Hyp. Railgun | -5/Factory | Hacked Exp. Hacking Suite | -5/Factory | Hacked Cmb. Antigrav System | -5/Extension | Hacked Exp. System Shield | -5/Extension | Hacked Exp. Cooling System | -5/Extension | Hacked Exp. Target Analyzer | -4/Factory | Hacked Adv. Reaction Control System | -4/Factory | Hacked Tesla Bomb Launcher | -4/Factory | Hacked Exp. Power Amplifier | -4/Armory | Hacked Exp. Matter Compressor | -4/Armory | Hacked Exp. Energy Well | -4/Armory | Hacked Exp. Phase Shifter | -3/Research | Hacked Cld. Q-thruster | -3/Research | Hacked Exp. Armor Integrity Analyzer | -3/Research | Hacked Exp. Weapon Cycler | -3/Research | Hacked Coolant Network | -3/Research | Hacked Zero-point Reactor | -3/Research | Hacked Hvy. Regenerative Plating | -3/Testing | Hacked Exp. Force Field | -3/Testing | Hacked Exp. Q-thruster | -3/Testing | Hacked Imp. Quantum Reactor | -3/Testing | Hacked Cmb. Linear Gravjet | -2/Research | Hacked Robot Schematics ------------------ S-27 Virus | -6/Data Miner | Free G-50 Soldier | -6/Data Miner | Free L-41 Fighter | -6/Data Miner | Free X-72 Disruptor | -6/Data Miner | Free P-70 Sage | -6/Data Miner | Free I-36 Angel | -6/Data Miner | Free Fabricated ------------ Imp. Hacking Suite | x1 | -7/Factory Exp. Signal Interpreter | x1 | -7/Factory Imp. Hacking Suite | x1 | -7/Factory Imp. Hacking Suite | x1 | -7/Factory Adv. Hacking Suite | x1 | -6/Factory Adv. Hacking Suite | x1 | -6/Factory Adv. Hacking Suite | x1 | -6/Factory Adv. Hacking Suite | x1 | -6/Factory Adv. Hacking Suite | x1 | -6/Factory Adv. Hacking Suite | x1 | -6/Factory Q-thruster | x2 | -6/Factory | Preloaded Q-thruster | x2 | -6/Factory | Preloaded Mni. Fusion Reactor | x1 | -6/Factory Mni. Fusion Reactor | x1 | -6/Factory Adv. Armor Integrity Analyzer | x1 | -5/Factory Exp. Targeting Computer | x1 | -5/Factory Exp. Targeting Computer | x1 | -5/Factory Hyp. Railgun | x2 | -5/Factory Exp. Hacking Suite | x1 | -5/Factory Exp. Hacking Suite | x1 | -5/Factory Exp. Hacking Suite | x1 | -5/Factory Exp. System Shield | x1 | -4/Factory Exp. Target Analyzer | x1 | -4/Armory Exp. Cooling System | x1 | -4/Armory Adv. Reaction Control System | x1 | -4/Armory Tesla Bomb Launcher | x1 | -4/Armory Exp. Matter Compressor | x1 | -4/Armory Exp. Power Amplifier | x1 | -4/Armory Exp. Armor Integrity Analyzer | x1 | -3/Research Cld. Q-thruster | x1 | -3/Research Cld. Q-thruster | x1 | -3/Testing Cld. Q-thruster | x1 | -3/Testing Cld. Q-thruster | x1 | -3/Testing Exp. Weapon Cycler | x1 | -1/Access Exp. Force Field | x1 | -1/Access Zero-point Reactor | x1 | -1/Access Exp. Energy Well | x1 | -1/Access Alien Tech Used ----------------- Core Regenerator Integrated Reactor Subatomic Replicator Integrated Heat Negator LRC Boosters Core Expander Sigix Terminator Transdimensional Reconstructor High-powered Transdimensional Reconstructor Achievements -------------- None Challenges ------------ None RPGLIKE | -11 -10 -10 -10 -9 -8 -7 -7 -7 -7 -7 -7 -7 -6 -6 -6 -6 -6 -6 -6 -5 -5 -5 -5 -5 -5 -5 -5 -4 -4 -4 -3 -3 -2 -2 -2 -1 -1 -1 --------- Run | Scr Mat Min Exi Min Mat Fac Was Fac Low Low Zio Dee Pro Fac Was Fac Low Low Dat Pro Fac Was Fac Ext Cet Arc Hub Fac Arm Lab Res Tes Res Qua Sec Acc Com Ac0 Levels Raised 39 | . 1 1 . 1 3 4 . 3 1 . 1 . 1 2 . 1 . . . 1 . . 1 1 1 . . 1 1 1 1 1 2 1 2 2 3 1 XP Earned 62015 | 3000 2830 860 350 725 4833 6113 200 5027 869 638 294 342 1553 2607 67 1282 198 118 152 1058 1035 97 1410 1113 788 224 1056 1597 1038 970 1624 1187 3079 1763 2453 3231 5558 676 XP Spent 61180 | 2970 1200 1300 160 1850 4100 6280 . 3550 1100 . 2600 . 500 2900 . . . . . 3200 . . 1500 . 3500 . 75 . 110 4400 . . 5200 1600 2710 4400 4625 1350 Upgrades 80 | 8 2 2 4 2 3 19 . 2 1 . 1 . 1 1 . . . . . 1 . . 1 . 1 . 1 . 1 2 . . 2 1 9 1 12 2 Power Slot 1 | . . . . . . . . . . . . . 1 . . . . . . . . . . . . . . . . . . . . . . . . . Propulsion Slot 3 | 1 . 1 . 1 . . . . . . . . . . . . . . . . . . . . . . . . . . . . . . . . . . Utility Slot 14 | 2 1 . . . 2 1 . 1 . . 1 . . 1 . . . . . 1 . . . . 1 . . . . 1 . . 1 . . 1 . . Weapon Slot 3 | 1 . . . . . 1 . . 1 . . . . . . . . . . . . . . . . . . . . . . . . . . . . . Core Integrity 14 | . . . 4 . . 1 . . . . . . . . . . . . . . . . . . . . 1 . . . . . . . 8 . . . Heat Dissipation 4 | 2 . . . . . 1 . . . . . . . . . . . . . . . . . . . . . . 1 . . . . . . . . . Energy Generation 3 | 1 . . . . . . . . . . . . . . . . . . . . . . . . . . . . . . . . . . . . . 2 Mass Support 4 | . 1 . . . . . . . . . . . . . . . . . . . . . . . . . . . . 1 . . 1 1 . . . . Inventory Capacity 7 | 1 . 1 . 1 1 . . 1 . . . . . . . . . . . . . . 1 . . . . . . . . . . . 1 . . . Sight Range 2 | . . . . . . . . . . . . . . . . . . . . . . . . . . . . . . . . . . . . . 2 . Sensor Range 12 | . . . . . . 10 . . . . . . . . . . . . . . . . . . . . . . . . . . . . . . 2 . Ranged Accuracy 2 | . . . . . . 2 . . . . . . . . . . . . . . . . . . . . . . . . . . . . . . . . Hack Attack % 2 | . . . . . . 2 . . . . . . . . . . . . . . . . . . . . . . . . . . . . . . . . Hack Defense % 1 | . . . . . . 1 . . . . . . . . . . . . . . . . . . . . . . . . . . . . . . . . KI Resistance % 4 | . . . . . . . . . . . . . . . . . . . . . . . . . . . . . . . . . . . . . 4 . TH Resistance % 4 | . . . . . . . . . . . . . . . . . . . . . . . . . . . . . . . . . . . . . 4 . Protomatter Created 15815 | . 347 . . 64 427 206 179 426 184 74 . 164 188 428 257 269 63 . 75 29 162 173 336 511 269 74 467 469 296 . 212 219 448 669 1357 1273 4430 1070 Integrity Restored 22594 | . 462 . . 105 1173 205 671 469 470 160 . 492 399 871 133 400 189 . 222 39 153 . 316 672 73 72 182 1164 511 . 406 132 767 1247 2181 3154 2923 2181 Core 17982 | . 336 . . 105 932 193 495 340 386 130 . 492 399 597 109 377 189 . 155 24 109 . 221 541 58 39 144 1164 232 . 373 108 592 965 1839 2342 2211 1785 Parts 4612 | . 126 . . . 241 12 176 129 84 30 . . . 274 24 23 . . 67 15 44 . 95 131 15 33 38 . 279 . 33 24 175 282 342 812 712 396 Protomatter Decayed 9311 | . 116 . 10 162 65 136 . 206 57 15 . . 55 131 139 116 . . . . 61 173 208 539 283 . 857 81 122 . 76 174 204 188 561 214 4066 296 Game ------ Seed ThermalManeuveringFilter Manual? 0 Play Time 05:54:48 Cumulative 1007.0 hours Start 2020.01.10 @ 13:30:39 End 2020.01.11 @ 21:32:31 Sessions 3 Manual Loads 0 Difficulty Rogue Special Mode Winter2019/RPGLIKE Game No. 321 Rogue 321 Adventurer 0 Explorer 0 Win Type 1 Total 73 Types 14/8/32/4/1/2/12 Lore% 97 Gallery% 95 Achievement% 84 Wizard Run 0 Options --------- ASCII 0 Keyboard 0 Movement Numpad Keybinds 0 Fullscreen 1 Font 18/SmallcapsGlow Map View 76x50 Tactical HUD 1 Map Filters NONE Filters NONE Steam 1 RUN: d1c2ab19-0c4a-4b80-ba82-e56ecf22cf0b